{"text_format":"1","workbook":"xlsx","n_sheets":19,"sheets":["メイン画面","マスタ (申請・工事業者)","マスタ（浄化槽）","入力","申請審査票","交付申請書","覚書","実績報告審査票","実績報告書","変更届出書","チェックリスト","交付請求書","口振依頼書","変更等承認","移管データ","見積額調書(提出不要・削除禁止)","収支決算及び実績額(提出不要・削除禁止)","【編集不可】マスタ","【編集不可】補助要件マスタ"],"not_rendered":{"charts":0,"images":0,"macros":1,"external_links":1,"defined_names":760,"comments":3,"pivot_tables":0},"unopened":[],"bounds":{"document_bytes":16777216,"sheet_cells":100000,"rows_first":2000,"rows_last":500,"rows_between":2000,"halvings":0,"cell_chars":16384,"cell_head_chars":4096},"cells_cut":0,"cells_raw":0,"read":"whole","date_system":"1900"}

{"sheet":"メイン画面","index":0,"n_rows":40,"n_cols":22,"rows_kept":40,"cut":false,"hidden":false,"merged":[[0,1,0,20],[25,12,34,12],[25,1,34,1],[13,1,19,1],[13,12,19,12],[10,1,11,1],[3,1,5,3],[37,1,38,3],[33,21,35,23],[6,1,8,1],[22,1,23,3],[39,12,41,12],[39,1,41,1]]}
[null,"作　成　支　援　様　式　メ　イ　ン　画　面"]
[]
[]
[null,"初期設定"]
[]
[]
[null,"初期設定"]
[]
[]
[]
[null,"申請"]
[]
[]
[null,"申請入力",null,null,null,null,null,null,null,null,null,null,"申請出力"]
[]
[]
[]
[]
[]
[]
[]
[]
[null,"実績報告"]
[]
[]
[null,"実績報告\n入力",null,null,null,null,null,null,null,null,null,null,"実績報告\n出力"]
[]
[]
[]
[]
[]
[]
[]
[null,null,null,null,null,null,null,null,null,null,null,null,null,null,null,null,null,null,null,null,null,"※補助事業者あてに依頼をする際に使用してください。"]
[]
[]
[]
[null,"変更等承認"]
[]
[null,"変更等承認\n申請　入力",null,null,null,null,null,null,null,null,null,null,"変更等承認\n申請　出力"]

{"sheet":"マスタ (申請・工事業者)","index":1,"n_rows":54,"n_cols":11,"rows_kept":54,"cut":false,"hidden":false,"merged":[]}
["No","商号","〒","住所","電話","登録／届出","登録（届出）年度\n■■第・・・号","登録（届出）番号\n第■■号","担当者・設備士","免状番号","修了番号"]
["例","〇〇設備(株)","700-0913","岡山市北区大供一丁目１－１","086-803-1000","登録",5,1000,"岡山　一郎",12345678,87654321]
[1]
[2]
[3]
[4]
[5]
[6]
[7]
[8]
[9]
[10]
[11]
[12]
[13]
[14]
[15]
[16]
[17]
[18]
[19]
[20]
[21]
[22]
[23]
[24]
[25]
[26]
[27]
[28]
[29]
[30]
[31]
[32]
[33]
[34]
[35]
[36]
[37]
[38]
[39]
[40]
[41]
[42]
[43]
[44]
[45]
[46]
[47]
[48]
[49]
[50]
[]
[null,null,"入力してください"]

{"sheet":"マスタ（浄化槽）","index":2,"n_rows":24,"n_cols":5,"rows_kept":24,"cut":false,"hidden":false,"merged":[]}
["No","型式","メーカー","全浄協登録番号","型式認定番号"]
["例","ABC-1","(株)〇〇",1234567,"1-23A-B-456-7"]
[1,"CA-5","フジクリーン",2810602,"5-19K-H-007"]
[2,"CA-7","フジクリーン",2810602,"5-19K-H-007-1"]
[3,"CA-10","フジクリーン",2810602,"5-19K-H-007-2"]
[4,"KZⅡ-5","クボタ",2880301,"6-23K-H-001"]
[5,"KZⅡ-7","クボタ",2880301,"6-23K-H-001-1"]
[6,"KZⅡ-10","クボタ",2880301,"6-23K-H-001-2"]
[7,"XH-5","ダイキ",2960301,"8-22-H-001"]
[8,"XH-7","ダイキ",2960301,"8-22-H-002"]
[9,"XH-10","ダイキ",2960301,"8-22-H-003"]
[10,"KRS-5A","ハウステック",3000101,"3-19-H-003"]
[11,"KRS-7A","ハウステック",3000101,"3-19-H-003-2"]
[12,"KGRN-10","ハウステック",2441003,"3-22K-H-007-2"]
[13,"水創り王ｰ5","ニッコー",3010001,"4-20-H-001"]
[14,"水創り王ｰ7","ニッコー",3010001,"4-20-H-001-1"]
[15,"水創り王ｰ10","ニッコー",3010001,"4-20-H-001-2"]
[16,"CXN-5","アムズ",2630403,"4-23K-H-004"]
[17,"CXN-7","アムズ",2630403,"4-23K-H-004-1"]
[18,"CXN-10","アムズ",2630403,"4-23K-H-004-2"]
[19]
[20]
[]
[null,null,"入力してください。"]

{"sheet":"入力","index":3,"n_rows":83,"n_cols":11,"rows_kept":83,"cut":false,"hidden":false,"merged":[[45,0,53,0],[7,2,7,9],[8,2,8,9],[42,0,43,0],[41,2,41,9],[35,0,41,0],[36,2,36,9],[52,6,52,9],[52,2,52,5],[35,2,35,4],[45,2,45,9],[50,2,50,9],[23,0,26,0],[31,2,31,9],[32,2,32,9],[33,2,33,9],[63,0,67,0],[69,0,73,0],[74,0,76,0],[71,2,71,9],[67,2,67,9],[72,2,72,9],[70,2,70,9],[74,2,74,9],[66,2,66,9],[73,2,73,3],[73,7,73,8],[73,4,73,5],[69,2,69,9],[63,2,63,9],[75,2,75,9],[76,2,76,9],[65,2,65,9],[64,2,64,9],[61,4,61,9],[61,2,61,3],[53,6,53,9],[53,2,53,5],[54,2,54,5],[57,6,57,9],[57,2,57,5],[59,6,59,9],[59,2,59,5],[58,2,58,5],[58,6,58,9],[28,2,28,9],[29,2,29,9],[30,2,30,9],[23,3,23,9],[28,0,34,0],[24,3,24,9],[26,3,26,9],[34,2,34,9],[25,2,25,9],[54,0,60,0],[54,6,54,9],[55,6,55,9],[56,6,56,9],[55,2,55,5],[56,2,56,5],[13,2,13,9],[12,2,12,9],[21,6,21,9],[9,2,9,9],[20,0,20,5],[19,6,19,9],[20,6,20,9],[16,2,16,9],[15,2,15,9],[14,2,14,9],[18,0,18,9],[19,0,19,5],[0,0,16,0],[21,0,21,5],[0,2,0,5],[0,6,0,9],[1,2,1,9],[5,2,5,9],[3,2,3,5],[11,2,11,9],[10,2,10,9],[6,2,6,9],[4,2,4,5],[4,6,4,9],[51,2,51,9],[46,2,46,9],[49,2,49,9],[42,2,42,9],[43,2,43,9],[47,2,47,9],[35,5,35,9],[39,2,39,9],[40,2,40,9],[48,2,48,9],[37,2,37,9],[38,2,38,9]]}
["申請者に関する情報",null,"申請",null,null,null,"実績"]
[null,"申請年度（令和）",7,null,null,null,null,null,null,null,"和暦の数字のみ入力"]
[null,"申請(左)/実績報告(右)　月日",null,"月",null,"日",null,"月",null,"日","※事前申請ではなく、正式受付日を入力（左）申請月日（右）実績報告月日をドロップダウンから選択"]
[null,"交付決定日",null,null,null,null,null,"月",null,"日","（右）交付決定通知月日"]
[null,"交付決定番号",null,null,null,null,null,null,null,null,"（右）交付決定通知書の岡山市指令環保浄第■■号の番号"]
[null,"〒",null,null,null,null,null,null,null,null,"ハイフンを入れない7桁数字"]
[null,"住所",null,null,null,null,null,null,null,null,"住所と住所方書にはスペースを入力。交付決定以降に住所異動した場合には異動後の住所を実績報告時に上書き入力。"]
[null,"フリガナ",null,null,null,null,null,null,null,null,"カタカナで入力。姓と名の間はスペースを入れる。"]
[null,"氏名",null,null,null,null,null,null,null,null,"姓と名の間はスペースを入れる。"]
[null,"電話",null,null,null,null,null,null,null,null,"ハイフンを入れる。（例）086-803-1000"]
[null,"①主たる生活の本拠の住宅に設置",null,null,null,null,null,null,null,null,"浄化槽を設置する住宅を生活の本拠とする場合は【はい】を選択"]
[null,"②浄化槽を設置する建物の汚水処理",null,null,null,null,null,null,null,null,{"$f":"C11&C12","v":""}]
[null,"③住民票の事前異動",null,null,null,null,null,null,null,null,{"$f":"C12&C13","v":""}]
[null,"④申請者の現（異動前）住所",null,null,null,null,null,null,null,null,{"$f":"C12&C13&C14","v":""}]
[null,"⑤補助金申請"]
[null,"⑥確認・届出",null,null,null,null,null,null,null,null,{"$f":"C15&C16","v":""}]
[null,"⑦浄化槽を設置する建物の所有者"]
[]
["申請者の市税に係る徴収金の滞納有無について（岡山市内に在住の場合）"]
["❶岡山市長が調査・確認することについて"]
["❷調査結果を手続き代行者に知らせることについて"]
["❶❷に同意の場合は申請者の生年月日（スラッシュ区切り）",null,null,null,null,null,null,null,null,null,"年・月・日はスラッシュで区切る（例）YYYY（西暦）/MM/DDまたはSYY（昭和）/MM/DD,HYY（平成）/MM/DD"]
[]
["添付書類","理由書",null,null,null,null,null,null,null,null,"（左）交付要件に関わらない理由書がある場合に選択（右）着色セルに内容を選択、自由入力も可"]
[null,"承諾書",null,null,null,null,null,null,null,null,"（左）交付要件に関わらない承諾書がある場合に選択（右）着色セルに内容を選択、自由入力も可"]
[null,"公共物使用許可"]
[null,"その他",null,null,null,null,null,null,null,null,"（左）その他添付書類がある場合に選択（右）着色セルに内容を入力"]
[]
["設置場所","住所（区名）",null,null,null,null,null,null,null,null,"ドロップダウンリストから選択"]
[null,"町名",null,null,null,null,null,null,null,null,"区名を選択ののちドロップダウンリストから選択"]
[null,"字名（任意入力）",null,null,null,null,null,null,null,null,{"$f":"C29&C30&C31","v":""}]
[null,"地番（本番）※",null,null,null,null,null,null,null,null,"〇〇番（番地）□□のうち、○○部分（複数地番の場合ははじめの地番について入力する。）"]
[null,"地番（枝番）※",null,null,null,null,null,null,null,null,"〇〇番（番地）□□のうち、□□部分（ある場合のみ）"]
[null,"※以外に複数地番がある場合ここに記載してください（地番と地番はコンマ区切り、本番と枝番はハイフン区切りとしてください。）。",null,null,null,null,null,null,null,null,{"$f":"ASC(IF(C34=0,IF(C33=0,C32,C32&\"-\"&C33),IF(C33=0,C32,C32&\"-\"&C33)&\",\"&C34))","v":""}]
[null,"設置場所記載内容確認用",{"$f":"ASC(IF(C29&C30&C33=0,\"\",C29&C30&IF(C33=0,C32,C32&\"-\"&C33)))","v":""}]
["住宅","種類",null,null,null,null,null,null,null,null,"（右）併用住宅の場合用途を入力。"]
[null,"延べ床面積（㎡）",{"$f":"SUM(C38:J39)","v":0},null,null,null,null,null,null,null,"自動入力。入力しない。"]
[null,"うち住居部分（㎡）",null,null,null,null,null,null,null,null,"延べ床面積のうち住居部分の面積（㎡）を入力する。"]
[null,"うちその他部分（㎡）",null,null,null,null,null,null,null,null,"延べ床面積のうち住居部分以外の面積（㎡）を入力する。専用住宅の場合は入力不要。"]
[null,"所有者",null,null,null,null,null,null,null,null,"ドロップダウンリストから所有者情報を選択"]
[null,"所有者が他者の場合その氏名"]
[null,"使用予定人数（人）",null,null,null,null,null,null,null,null,"浄化槽設置場所においてその浄化槽を使用する予定の人数を入力"]
["撤去物","撤去予定の建物",null,null,null,null,null,null,null,null,{"$f":"IF(C12=\"汲取り\",C12,\"\")&IF(C12=\"単独\",C12,\"\")","v":""}]
[null,"水回り（便槽・浄化槽除く）",null,null,null,null,null,null,null,null,{"$f":"K43&\"　\"&C43&\"　\"&C44","v":"　　"}]
[]
["浄化槽","メーカー",{"$f":"IFERROR(VLOOKUP(C47,'マスタ（浄化槽）'!B:E,2,FALSE),\"\")","v":""},null,null,null,null,null,null,null,"自動入力"]
[null,"機種",null,null,null,null,null,null,null,null,"リストにない場合は、「マスタ（浄化槽）」に追加登録する。"]
[null,"人槽（JIS算定）"]
[null,"人槽（申請）"]
[null,"全浄協登録番号",{"$f":"IFERROR(VLOOKUP(C47,'マスタ（浄化槽）'!B:E,3,FALSE),\"\")","v":""},null,null,null,null,null,null,null,"自動入力"]
[null,"型式認定番号",{"$f":"IFERROR(VLOOKUP(C47,'マスタ（浄化槽）'!B:E,4,FALSE),\"\")","v":""},null,null,null,null,null,null,null,"自動入力"]
[null,"ポンプ放流",null,null,null,null,null,null,null,null,"ポンプ放流の場合は「あり」を選択"]
[null,"製造番号",null,null,null,null,null,null,null,null,"浄化槽の製造番号を半角英数字で入力する。"]
[null,"ブロワー型式",null,null,null,null,null,null,null,null,"ブロワーの型式を半角英数字で入力する。"]
["工事\n左：予定\n右：実績","総額（円）",{"$f":"SUM(C56:C60)","v":0},null,null,null,{"$f":"SUM(G56:G60)","v":0},null,null,null,"自動入力（左）申請時（右）実績報告時"]
[null,"本体価格（円）",null,null,null,null,null,null,null,null,"（左）申請時（右）実績報告時"]
[null,"埋設工事費（円）",null,null,null,null,null,null,null,null,"（左）申請時（右）実績報告時"]
[null,"宅内配管工事費（円）",null,null,null,null,null,null,null,null,"宅内配管工事補助を申請する場合は記入してください。（左）申請時（右）実績報告時"]
[null,"便槽撤去工事費（円）",null,null,null,null,null,null,null,null,"便槽撤去工事補助を申請する場合は記入してください。（左）申請時（右）実績報告時"]
[null,"消費税（10％）端数：切捨て",{"$f":"VLOOKUP(B60,【編集不可】マスタ!S1:U4,2,FALSE)","v":0},null,null,null,{"$f":"VLOOKUP(B60,【編集不可】マスタ!S2:U4,3,FALSE)","v":0},null,null,null,"ピンク色部分は消費税の端数処理の方法をリストから選ぶ。黄色部分は自動入力。入力しない。（左）申請時、消費税金額、（右）実績報告時、消費税金額"]
[null,"工事期間（終わり）",null,"月",null,"日",null,"月",null,"日"]
["放流先","放流先",null,null,null,null,null,null,null,null,"その他を選択した場合（右）放流先を入力"]
[]
["手続き代行者","〒",{"$f":"IFERROR(VLOOKUP($C$66,'マスタ (申請・工事業者)'!B:K,2,FALSE),\"\")","v":""},null,null,null,null,null,null,null,"自動入力。入力しない。"]
[null,"住所",{"$f":"IFERROR(VLOOKUP($C$66,'マスタ (申請・工事業者)'!B:K,3,FALSE),\"\")","v":""},null,null,null,null,null,null,null,"自動入力。入力しない。"]
[null,"氏名名称",null,null,null,null,null,null,null,null,"ドロップダウンリストから手続き代行業者を選択し入力する。"]
[null,"担当者",null,null,null,null,null,null,null,null,"ドロップダウンリストから手続き代行業者担当者を選択し入力する。"]
[null,"電話",{"$f":"IFERROR(VLOOKUP($C$66,'マスタ (申請・工事業者)'!B:K,4,FALSE),\"\")","v":""},null,null,null,null,null,null,null,"自動入力。入力しない。"]
[]
["工事業者","〒",{"$f":"IFERROR(VLOOKUP($C$72,'マスタ (申請・工事業者)'!B:K,2,FALSE),\"\")","v":""},null,null,null,null,null,null,null,"自動入力。入力しない。"]
[null,"住所",{"$f":"IFERROR(VLOOKUP($C$72,'マスタ (申請・工事業者)'!B:K,3,FALSE),\"\")","v":""},null,null,null,null,null,null,null,"自動入力。入力しない。"]
[null,"商号",null,null,null,null,null,null,null,null,"ドロップダウンリストから工事業者を選択し入力する。"]
[null,"電話",{"$f":"IFERROR(VLOOKUP($C$72,'マスタ (申請・工事業者)'!B:K,4,FALSE),\"\")","v":""},null,null,null,null,null,null,null,"自動入力。入力しない。"]
[null,"登録（届出）番号",{"$f":"IFERROR(VLOOKUP($C$72,'マスタ (申請・工事業者)'!B:K,5,FALSE),\"\")","v":""},null,{"$f":"IFERROR(VLOOKUP($C$72,'マスタ (申請・工事業者)'!B:K,6,FALSE),\"\")","v":""},null,"第",{"$f":"IFERROR(VLOOKUP($C$72,'マスタ (申請・工事業者)'!B:K,7,FALSE),\"\")","v":""},null,"号","自動入力。入力しない。"]
["設備士","氏名",null,null,null,null,null,null,null,null,"ドロップダウンリストから設備士を選択し入力する。"]
[null,"免状番号",{"$f":"IFERROR(VLOOKUP($C$75,'マスタ (申請・工事業者)'!I:K,2,FALSE),\"\")","v":""},null,null,null,null,null,null,null,"自動入力。入力しない。"]
[null,"修了番号",{"$f":"IFERROR(VLOOKUP($C$75,'マスタ (申請・工事業者)'!I:K,3,FALSE),\"\")","v":""},null,null,null,null,null,null,null,"自動入力。入力しない。"]
[]
[]
[null,"必須入力箇所"]
[null,"任意入力箇所"]
[null,"自動入力箇所。入力不要。"]
[null,"関数入力箇所。入力不要。"]

{"sheet":"申請審査票","index":4,"n_rows":60,"n_cols":57,"rows_kept":60,"cut":false,"hidden":false,"merged":[[39,19,39,26],[39,27,39,28],[39,29,39,34],[16,0,16,13],[35,5,36,49],[47,0,48,3],[47,4,48,9],[47,10,48,46],[18,0,45,3],[44,5,44,50],[47,47,48,53],[29,5,30,49],[31,5,32,49],[39,36,39,48],[38,5,38,6],[33,5,34,49],[39,7,39,16],[39,17,39,18],[59,0,60,3],[59,4,60,9],[59,10,59,46],[59,47,60,53],[60,10,60,46],[49,47,50,53],[50,10,50,46],[57,0,58,3],[57,4,58,9],[57,10,57,46],[57,47,58,53],[58,10,58,46],[51,0,52,3],[49,0,50,3],[49,4,50,9],[49,10,49,46],[55,10,55,46],[55,47,56,53],[56,10,56,46],[51,47,52,53],[52,10,52,46],[53,0,56,3],[53,4,54,9],[53,10,53,46],[51,4,52,9],[51,10,51,46],[53,47,54,53],[54,10,54,46],[55,4,56,9],[12,1,12,2],[12,13,12,20],[12,11,12,12],[12,21,12,25],[12,31,12,33],[12,26,12,29],[12,3,12,10],[22,5,23,45],[41,5,41,6],[39,5,39,6],[40,5,40,6],[37,7,37,12],[38,7,38,12],[40,7,40,12],[41,7,41,12],[37,14,37,48],[16,20,16,31],[16,32,16,52],[16,14,16,19],[1,10,1,41],[3,1,3,33],[5,0,5,2],[5,3,5,8],[5,12,5,14],[5,15,5,23],[5,27,5,35],[9,6,9,10],[9,11,9,53],[7,0,8,5],[7,6,8,6],[7,7,8,32],[7,33,7,38],[7,39,8,53],[8,33,8,38],[12,42,12,45],[14,0,14,13],[14,14,14,52],[15,0,15,13],[15,14,15,52],[38,14,38,48],[40,14,40,48],[41,14,41,48],[9,0,9,5],[10,0,10,5],[11,0,11,5],[11,6,11,27],[11,28,11,31],[12,34,12,41],[12,47,12,49],[10,40,10,52],[10,6,10,38],[11,40,11,52],[11,32,11,38],[19,5,20,45],[21,22,21,51],[21,17,21,20],[25,5,28,49],[37,5,37,6]]}
[]
[null,null,null,null,null,null,null,null,null,null,"合併浄化槽設置補助金申請審査票"]
[]
[null,"太線の中を記入し、該当する項目にチェック(レ)してください。"]
[]
["年度",null,null,{"$f":"ASC(入力!C2)","v":"7"},null,null,null,null,null,null,null,null,"番号",null,null,null,null,null,null,null,null,null,null,null,null,null,null,"正式　　 ／"]
[]
["申請者\n氏名",null,null,null,null,null,null,{"$f":"DBCS( 入力!C9)","v":""}]
[]
["設置場所",null,null,null,null,null,"岡山市",null,null,null,null,{"$f":"ASC(IF(入力!K31&入力!K34=0,\"\",入力!K31&入力!K34))","v":""}]
["工事業者",null,null,null,null,null,{"$f":"DBCS(入力!C72)","v":""},null,null,null,null,null,null,null,null,null,null,null,null,null,null,null,null,null,null,null,null,null,null,null,null,null,null,null,null,null,null,null,null,null,{"$f":"ASC(入力!C73)","v":""}]
["申請手続",null,null,null,null,null,{"$f":"DBCS(入力!C66)","v":""},null,null,null,null,null,null,null,null,null,null,null,null,null,null,null,null,null,null,null,null,null,"担当者",null,null,null,{"$f":"DBCS(入力!C67)","v":""},null,null,null,null,null,null,null,{"$f":"ASC(入力!C68)","v":""}]
[null,{"$f":"IF(MID(入力!C16,2,2)=\"届出\",\"■\",\"□\")","v":"□"},null,"設置届出物件",null,null,null,null,null,null,null,{"$f":"IF(MID(入力!C16,2,2)=\"確認\",\"■\",\"□\")","v":"□"},null,"建築確認物件",null,null,null,null,null,null,null,"申請人槽",null,null,null,null,{"$f":"ASC(入力!C49)","v":""},null,null,null,null,"人槽",null,null," 使用予定人員",null,null,null,null,null,null,null,{"$f":"ASC(入力!C42)","v":""},null,null,null,null,"人"]
[]
["設置場所の今までの処理",null,null,null,null,null,null,null,null,null,null,null,null,null,{"$f":"入力!C12","v":0}]
["申請者の現住所（異動前）",null,null,null,null,null,null,null,null,null,null,null,null,null,{"$f":"入力!C14","v":0}]
["住民票事前異動",null,null,null,null,null,null,null,null,null,null,null,null,null,{"$f":"入力!C13","v":0},null,null,null,null,null,"生活の本拠に設置",null,null,null,null,null,null,null,null,null,null,null,{"$f":"入力!C11","v":0}]
[]
["特 記\n事 項"]
[null,null,null,null,null,{"$f":"入力!C15","v":0}]
[]
[]
[]
[]
[]
[null,null,null,null,null,{"$f":"IFERROR(VLOOKUP(入力!K12,【編集不可】補助要件マスタ!A10:B18,2,FALSE),\"\")","v":""}]
[]
[]
[]
[null,null,null,null,null,{"$f":"IFERROR(VLOOKUP(入力!K14,【編集不可】補助要件マスタ!A59:B104,2,FALSE),\"\")","v":""}]
[]
[null,null,null,null,null,{"$f":"IFERROR(VLOOKUP(入力!K16,【編集不可】補助要件マスタ!A125:B145,2,FALSE),\"\")","v":""}]
[]
[null,null,null,null,null,{"$f":"IFERROR(VLOOKUP(入力!C17,【編集不可】補助要件マスタ!A151:B155,2,FALSE),\"\")","v":""}]
[]
[null,null,null,null,null,{"$f":"\" \"&IF(OR(入力!C14=\"市外\",AND(入力!G20=\"同意します\",入力!G21=\"同意します\")),\"□ 滞納無証明書\",\"■ 滞納無証明書\")","v":" ■ 滞納無証明書"}]
[]
[null,null,null,null,null,{"$f":"IF(入力!C24=\"あり\",\"■\",\"□\")","v":"□"},null,"理由書",null,null,null,null,null,"(",{"$f":"入力!D24","v":0},null,null,null,null,null,null,null,null,null,null,null,null,null,null,null,null,null,null,null,null,null,null,null,null,null,null,null,null,null,null,null,null,null,null,")",null,null,null,null,null,null,"\""]
[null,null,null,null,null,{"$f":"IF(入力!C25=\"あり\",\"■\",\"□\")","v":"□"},null,"承諾書",null,null,null,null,null,"(",{"$f":"入力!D25","v":0},null,null,null,null,null,null,null,null,null,null,null,null,null,null,null,null,null,null,null,null,null,null,null,null,null,null,null,null,null,null,null,null,null,null,")"]
[null,null,null,null,null,{"$f":"IF(入力!C26=\"あり\",\"■\",\"□\")","v":"□"},null,"公共物使用許可",null,null,null,null,null,null,null,null,null,{"$f":"IF(入力!C52=\"あり\",\"■\",\"□\")","v":"□"},null,"ポンプ放流",null,null,null,null,null,null,null,{"$f":"IF(入力!C36=\"併用住宅\",\"■\",\"□\")","v":"□"},null,"併用住宅",null,null,null,null,null,"(",{"$f":"IF(入力!C36=\"併用住宅\",入力!F36,\"\")","v":""},null,null,null,null,null,null,null,null,null,null,null,null,")"]
[null,null,null,null,null,{"$f":"IF(入力!C27=\"あり\",\"■\",\"□\")","v":"□"},null,"その他",null,null,null,null,null,"(",{"$f":"入力!D27","v":0},null,null,null,null,null,null,null,null,null,null,null,null,null,null,null,null,null,null,null,null,null,null,null,null,null,null,null,null,null,null,null,null,null,null,")"]
[null,null,null,null,null,{"$f":"IF(入力!K44=\"　　\",\"□\",\"■\")","v":"□"},null,"撤去",null,null,null,null,null,"(",{"$f":"入力!K44","v":"　　"},null,null,null,null,null,null,null,null,null,null,null,null,null,null,null,null,null,null,null,null,null,null,null,null,null,null,null,null,null,null,null,null,null,null,")"]
[]
[]
[null,null,null,null,null,"岡山市税滞納有無については申請書裏面に記載"]
[]
[]
[null,null,null,null,"日 付",null,null,null,null,null,"指　　　　　摘　　　　　事　　　　　項",null,null,null,null,null,null,null,null,null,null,null,null,null,null,null,null,null,null,null,null,null,null,null,null,null,null,null,null,null,null,null,null,null,null,null,null,"担  当"]
[]
["受 付"]
[]
["入 力"]
[]
["係 員"]
[]
[]
[]
["室 長"]
[]
["連 絡"]

{"sheet":"交付申請書","index":5,"n_rows":99,"n_cols":57,"rows_kept":99,"cut":false,"hidden":false,"merged":[[68,27,68,42],[68,10,68,12],[69,10,69,12],[5,1,5,11],[7,2,7,4],[7,5,7,6],[7,7,7,53],[0,1,0,16],[2,13,2,38],[4,37,4,39],[4,40,4,42],[4,43,4,44],[16,10,16,13],[16,15,16,54],[17,1,18,7],[17,17,17,44],[18,10,18,13],[18,15,18,44],[8,1,8,53],[9,2,9,53],[10,1,10,40],[12,2,12,53],[20,1,20,7],[20,10,20,13],[20,15,20,42],[22,19,22,33],[26,1,29,7],[28,10,30,18],[28,20,28,22],[30,20,30,27],[30,29,30,55],[33,0,33,13],[34,1,35,9],[36,1,39,9],[36,11,37,16],[36,17,37,28],[36,29,37,32],[36,33,37,37],[36,38,37,46],[36,47,37,56],[38,11,39,15],[38,16,39,27],[38,28,39,35],[38,36,39,56],[40,1,43,9],[40,11,40,20],[40,21,40,22],[40,23,40,36],[41,32,41,33],[41,34,41,44],[44,1,47,9],[44,11,44,25],[44,26,44,27],[44,43,44,44],[47,11,47,20],[47,21,47,32],[47,33,47,34],[47,35,47,44],[41,45,41,46],[41,54,41,55],[42,32,42,33],[42,34,42,44],[42,45,42,46],[42,48,42,53],[42,54,42,55],[44,55,44,56],[45,11,45,20],[45,21,45,32],[45,33,45,34],[45,35,45,44],[45,45,45,54],[45,55,45,56],[43,32,43,33],[43,34,43,44],[43,45,43,46],[43,48,43,53],[43,54,43,55],[44,28,44,42],[47,45,47,54],[47,55,47,56],[46,11,46,20],[46,21,46,32],[46,33,46,34],[46,35,46,44],[46,45,46,54],[46,55,46,56],[51,45,51,53],[51,55,51,56],[48,54,48,56],[49,1,51,9],[49,11,49,12],[49,13,49,26],[49,27,49,41],[49,42,49,54],[49,55,49,56],[50,11,51,12],[48,1,48,9],[48,11,48,12],[48,13,48,23],[54,1,54,9],[54,11,54,13],[54,43,54,56],[53,13,53,23],[52,43,52,45],[52,46,52,47],[52,48,52,50],[52,51,52,53],[53,1,53,9],[53,11,53,12],[52,1,52,9],[52,15,52,29],[52,32,52,33],[52,35,52,37],[52,38,52,40],[52,41,52,42],[54,32,54,42],[88,1,89,19],[95,34,95,36],[4,45,4,47],[4,48,4,49],[4,50,4,52],[4,53,4,54],[15,11,15,13],[66,10,66,56],[67,10,67,56],[60,10,60,13],[60,14,60,31],[62,1,65,7],[62,10,62,13],[62,14,62,31],[65,11,65,56],[55,1,55,9],[55,11,55,13],[53,25,53,39],[48,25,48,39],[15,15,15,18],[28,24,28,55],[34,11,35,16],[34,17,35,56],[41,48,41,53],[55,14,55,31],[55,41,55,56],[56,41,56,56],[58,10,58,13],[58,14,58,55],[53,41,53,42],[53,43,53,47],[53,48,53,54],[50,13,50,26],[50,27,50,41],[50,42,50,54],[50,55,50,56],[51,13,51,22],[51,23,51,30],[51,32,51,44],[55,32,55,40],[54,14,54,31]]}
[null,"様式第１号（第６条関係）"]
[]
[null,null,null,null,null,null,null,null,null,null,null,null,null,"補　助　金　交　付　申　請　書"]
[null,null,null,null," "]
[null,null,null,null,null,null,null,null,null,null,null,null,null,null,null,null,null,null,null,null,null,null,null,null,null,null,null,null,null,null,null,null,null,null,null,null,null,"令和",null,null,{"$f":"ASC(IF(入力!C3=0,\"\",IF(入力!C3<4,入力!C2+1,入力!C2)))","v":""},null,null,"年",null,{"$f":"ASC(入力!C3)","v":""},null,null,"月",null,{"$f":"ASC(入力!E3)","v":""},null,null,"日"]
[null,"岡 山 市 長   様"]
[]
[null,null,"令和",null,null,{"$f":"ASC(IF(入力!C2=0,\"\",入力!C2))","v":"7"},null,"年度において、合併処理浄化槽を設置するにあたり、岡山市合併処理浄化槽設置"]
[null,"整備事業補助金交付要綱第６条の規定により、次のとおり補助金の交付を申請します。"]
[null,null,"申請に当たっては、岡山市補助金等交付規則及び岡山市合併処理浄化槽設置整備事業補助金"]
[null,"交付要綱の規定の適用を受けることについて同意します。"]
[null,null,"また、この申請書及び添付書類の記載事項は、事実に相違ありません。"]
[null,null,"なお、建物が共有名義の場合、共有者全員同意のもと私が代表して申請します。"]
[]
[]
[null,null,null,null,null,null,null,null,null,null,"〒",{"$f":"ASC(IF(入力!C6=0,\"\",LEFT(入力!C6,3)))","v":""},null,null,"-",{"$f":"ASC(IF(入力!C6=0,\"\",RIGHT(入力!C6,4)))","v":""}]
[null,null,null,null,null,null,null,null,null,null,"住　所",null,null,null,null,{"$f":"ASC(IF(入力!C7=0,\"\",入力!C7))","v":""}]
[null,"申請者",null,null,null,null,null,null,null,null,null,null,null,null,null,null,null," "]
[null,null,null,null,null,null,null,null,null,null,"フリガナ",null,null,null,null,{"$f":"DBCS(IF(入力!C8=0,\"\",入力!C8))","v":""}]
[]
[null,"( 設置者 )",null,null,null,null,null,null,null,null,"氏　名",null,null,null,null,{"$f":"DBCS(IF(入力!C9=0,\"\",入力!C9))","v":""}]
[]
[null,null,null,null,null,null,null,null,null,null,"(連絡先ＴＥＬ",null,null,null,null,null,null,null,null,{"$f":"ASC(IF(入力!C10=0,\"\",入力!C10))","v":""},null,null,null,null,null,null,null,null,null,null,null,null,null,null,")"]
[]
[]
[null,null,null,null,null,null,null,null,null,null,null,"私は岡山市合併処理浄化槽設置整備事業補助金の申請事務手続に関する　"]
[null,"手続きを\n代行させる\n場合",null,null,null,null,null,null,null,null,"すべての事項を次の者に委任します。"]
[]
[null,null,null,null,null,null,null,null,null,null,"手続き代行者",null,null,null,null,null,null,null,null,null,"住所",null,null,null,{"$f":"ASC(IF(入力!C65=0,\"\",入力!C65))","v":""}]
[]
[null,null,null,null,null,null,null,null,null,null,null,null,null,null,null,null,null,null,null,null,"氏名又は名称",null,null,null,null,null,null,null,null,{"$f":"DBCS(IF(入力!C66=0,\"\",入力!C66))","v":""}]
[]
[]
[]
[null,"設置場所",null,null,null,null,null,null,null,null,null,"岡山市",null,null,null,null,null,{"$f":"ASC(IF(入力!K31&入力!K34=0,\"\",入力!K31&入力!K34))","v":""}]
[]
[null,"設置する浄化槽",null,null,null,null,null,null,null,null,null,"メーカー",null,null,null,null,null,{"$f":"ASC(入力!C46)","v":""},null,null,null,null,null,null,null,null,null,null,null,{"$f":"ASC(入力!C49)","v":""},null,null,null,"人槽",null,null,null,null,"全浄協登録番号",null,null,null,null,null,null,null,null,{"$f":"ASC(IF(入力!C50=0,\"\",入力!C50))","v":""}]
[]
[null,null,null,null,null,null,null,null,null,null,null,"機種",null,null,null,null,{"$f":"ASC(入力!C47)","v":""},null,null,null,null,null,null,null,null,null,null,null,"型式認定番号",null,null,null,null,null,null,null,{"$f":"ASC(入力!C51)","v":""}]
[]
[null,"補助金申請額\n※裏面備考参照",null,null,null,null,null,null,null,null,null,"合計(A)+(B)+(C)",null,null,null,null,null,null,null,null,null,"金",null,{"$f":"AI42+AI43+AI44","v":0},null,null,null,null,null,null,null,null,null,null,null,null,null,"円"]
[null,null,null,null,null,null,null,null,null,null,null,"浄化槽設置分(上限)",null,null,null,null,null,null,null,null,null,null,null,null,null,null,null,null,null,null,null,"(A)","金",null,{"$f":"'見積額調書(提出不要・削除禁止)'!AM10*1000","v":0},null,null,null,null,null,null,null,null,null,null,"円",null,"(",{"$f":"IFERROR('見積額調書(提出不要・削除禁止)'!Z10*1000,0)","v":0},null,null,null,null,null,"円",null,")"]
[null,null,null,null,null,null,null,null,null,null,null,"（単独・汲取り）宅内配管工事分(上限)",null,null,null,null,null,null,null,null,null,null,null,null,null,null,null,null,null,null,null,"(B)","金",null,{"$f":"'見積額調書(提出不要・削除禁止)'!AM14*1000","v":0},null,null,null,null,null,null,null,null,null,null,"円",null,"(",300000,null,null,null,null,null,"円",null,")"]
[null,null,null,null,null,null,null,null,null,null,null,"便槽撤去工事分(上限)",null,null,null,null,null,null,null,null,null,null,null,null,null,null,null,null,null,null,null,"(C)","金",null,{"$f":"'見積額調書(提出不要・削除禁止)'!AM18*1000","v":0},null,null,null,null,null,null,null,null,null,null,"円",null,"(",90000,null,null,null,null,null,"円",null,")"]
[null,"事業費見積額\n※裏面備考参照",null,null,null,null,null,null,null,null,null,"合計(D)+(E)+(F)+(G)",null,null,null,null,null,null,null,null,null,null,null,null,null,null,"金",null,{"$f":"'見積額調書(提出不要・削除禁止)'!AH39","v":0},null,null,null,null,null,null,null,null,null,null,null,null,null,null,"円"]
[null,null,null,null,null,null,null,null,null,null,null,"浄化槽本体価格",null,null,null,null,null,null,null,null,null,{"$f":"'見積額調書(提出不要・削除禁止)'!AH28","v":0},null,null,null,null,null,null,null,null,null,null,null,"円",null,"宅内配管工事費(E)",null,null,null,null,null,null,null,null,null,{"$f":"'見積額調書(提出不要・削除禁止)'!AH32","v":0},null,null,null,null,null,null,null,null,null,"円"]
[null,null,null,null,null,null,null,null,null,null,null,"埋設工事費",null,null,null,null,null,null,null,null,null,{"$f":"'見積額調書(提出不要・削除禁止)'!AH30","v":0},null,null,null,null,null,null,null,null,null,null,null,"円",null,"便槽撤去工事費(F)",null,null,null,null,null,null,null,null,null,{"$f":"'見積額調書(提出不要・削除禁止)'!AH34","v":0},null,null,null,null,null,null,null,null,null,"円"]
[null,null,null,null,null,null,null,null,null,null,null,"小計（D）",null,null,null,null,null,null,null,null,null,{"$f":"V46+V47","v":0},null,null,null,null,null,null,null,null,null,null,null,"円",null,"消費税(G)",null,null,null,null,null,null,null,null,null,{"$f":"'見積額調書(提出不要・削除禁止)'!AH36","v":0},null,null,null,null,null,null,null,null,null,"円"]
[null,"住宅所有者",null,null,null,null,null,null,null,null,null,{"$f":"IF(入力!C40=0,\"□\",\"■\")","v":"□"},null,{"$f":"IF(入力!C40=0,\"\",入力!C40)","v":""},null,null,null,null,null,null,null,null,null,null,"(",{"$f":"DBCS(IF(入力!C41=0,\"\",入力!C41))","v":""},null,null,null,null,null,null,null,null,null,null,null,null,null,null,")"]
[null,"住宅の種類",null,null,null,null,null,null,null,null,null,{"$f":"IF(入力!C36=\"一般住宅\",\"■\",\"□\")","v":"□"},null,"一般住宅",null,null,null,null,null,null,null,null,null,null,null,null,null,"延べ床面積",null,null,null,null,null,null,null,null,null,null,null,null,null,null,{"$f":"IF(入力!C36=\"一般住宅\",入力!C38,\"\")","v":""},null,null,null,null,null,null,null,null,null,null,null,null,"㎡"]
[null,null,null,null,null,null,null,null,null,null,null,{"$f":"IF(入力!C36=\"併用住宅\",\"■\",\"□\")","v":"□"},null,"店舗等併用住宅",null,null,null,null,null,null,null,null,null,null,null,null,null,"延べ床面積",null,null,null,null,null,null,null,null,null,null,null,null,null,null,{"$f":"IFERROR(X52+AT52,\"\")","v":""},null,null,null,null,null,null,null,null,null,null,null,null,"㎡"]
[null,null,null,null,null,null,null,null,null,null,null,null,null,"居住部分の床面積",null,null,null,null,null,null,null,null,null,{"$f":"IF(入力!C36=\"併用住宅\",入力!C38,\"\")","v":""},null,null,null,null,null,null,null,"㎡","その他の部分の床面積",null,null,null,null,null,null,null,null,null,null,null,null,{"$f":"IF(入力!C36=\"併用住宅\",入力!C39,\"\")","v":""},null,null,null,null,null,null,null,null,null,"㎡"]
[null,"工事の予定期間",null,null,null,null,null,null,null,null,null,null,null,null,null,"交付決定日以降",null,null,null,null,null,null,null,null,null,null,null,null,null,null,null,null,"～",null,null,"令和",null,null,{"$f":"ASC(IF(入力!C2=0,\"\",IF(入力!C61<4,入力!C2+1,入力!C2)))","v":"8"},null,null,"年",null,{"$f":"ASC(入力!C61)","v":""},null,null,"月",null,{"$f":"ASC(入力!E61)","v":""},null,null,"日"]
[null,"放流先",null,null,null,null,null,null,null,null,null,{"$f":"IF(入力!C40=0,\"□\",\"■\")","v":"□"},null,{"$f":"IF(入力!C62=0,\"\",入力!C62)","v":""},null,null,null,null,null,null,null,null,null,null,"(",{"$f":"DBCS(IF(入力!E62=0,\"\",入力!E62))","v":""},null,null,null,null,null,null,null,null,null,null,null,null,null,null,")"]
[null,"浄化槽工事業者",null,null,null,null,null,null,null,null,null,"商号",null,null,{"$f":"DBCS(IF(入力!C72=0,\"\",入力!C72))","v":""},null,null,null,null,null,null,null,null,null,null,null,null,null,null,null,null,null,"岡山県登録(届出)番号",null,null,null,null,null,null,null,null,null,null,{"$f":"ASC(IF(AND(入力!C74=0,入力!F74=0),\"\",入力!C74&\" \"&入力!E74&\" 第 \"&入力!H74&\" 号\"))","v":"  第  号"}]
[null,"浄化槽設備士",null,null,null,null,null,null,null,null,null,"氏名",null,null,{"$f":"DBCS(IF(入力!C75=0,\"\",入力!C75))","v":""},null,null,null,null,null,null,null,null,null,null,null,null,null,null,null,null,null,"免状(修了)番号",null,null,null,null,null,null,null,null,{"$f":"IF(AND(入力!C76=0,入力!C77=0),\"\",ASC(IF(入力!C76=0,入力!C77,入力!C76)))","v":""}]
[]
[]
[null,null,null,null,null,null,null,null,null,null,"住所",null,null,null,{"$f":"ASC(IF(入力!C7=0,\"\",入力!C7))","v":""}]
[]
[null,null,null,null,null,null,null,null,null,null,"ﾌﾘｶﾞﾅ",null,null,null,{"$f":"DBCS(IF(入力!C8=0,\"\",入力!C8))","v":""}]
[]
[null,"岡山市内\n居住者\nの場合",null,null,null,null,null,null,null,null,"氏名",null,null,null,{"$f":"DBCS(IF(入力!C9=0,\"\",入力!C9))","v":""}]
[]
[]
[null,null,null,null,null,null,null,null,null,null,null,"私の市税に係る徴収金の滞納有無について岡山市長が調査・確認すること及び"]
[null,null,null,null,null,null,null,null,null,null,"補助金事務手続きを他者に委任している場合、調査結果を手続き代行者に知らせる"]
[null,null,null,null,null,null,null,null,null,null,"ことについて"]
[null,null,null,null,null,null,null,null,null,null,{"$f":"IF(AND(入力!G20=\"同意します\",入力!G21=\"同意します\"),\"■\",\"□\")","v":"□"},null,null,"同意します。(生年月日",null,null,null,null,null,null,null,null,null,null,null,null,null,{"$f":"IF(入力!G22=0,\"\",入力!G22)","v":""},null,null,null,null,null,null,null,null,null,null,null,null,null,null,null,")"]
[null,null,null,null,null,null,null,null,null,null,{"$f":"IF(AND(入力!G20=\"同意します\",入力!G21=\"同意します\"),\"□\",\"■\")","v":"■"},null,null,"同意しません。(滞納無証明書を添付します。)"]
[]
[]
[]
[null,"備考"]
[null,null,"※補助金申請額について"]
[null,null,null,"(A)欄には、上限と(D)を比較していずれか少ない方の額を記入してください。"]
[null,null,null,"(B)欄には、上限と(E)を比較していずれか少ない方の額を記入してください。"]
[null,null,null,"(C)欄には、上限と(F)を比較していずれか少ない方の額を記入してください。"]
[null,null,"※事業費見積額について"]
[null,null,null,"浄化槽設置工事分(※配管工事費を含まない)を(D)欄に記入してください。"]
[null,null,null,"単独転換又は汲取り転換に伴う宅内配管工事補助を申請する場合は(E)の欄にも記入してください。"]
[null,null,null,"汲取り便槽撤去に伴う撤去工事補助を申請する場合は(F)の欄にも記入してください。"]
[null,null,null,"(D),(E),(F) には消費税及び地方消費税の額を含まずに，１，０００円未満は切捨てた額を"]
[null,null,null,"記入してください。"]
[]
[]
[null,"ここから下は記入しないでください。"]
[]
[null,"岡山市記載分"]
[]
[null," 市税滞納有無"]
[null,null,"□調査不要( 市外居住者　　市内居住者で滞納無証明書添付 )"]
[null,null,"□調査要"]
[null,null,null,null,null,"調査日",null,null,null,null,null,"／",null,null,null,null,null,"確認者"]
[null,null,null,"□滞納無"]
[null,null,null,"□滞納有",null,null,null,null,null,"□不明(氏名 住所 生年月日)不一致,該当者無 ",null,null,null,null,null,null,null,null,null,null,null,null,null,null,null,null,null,null,null,null,null,null,null,null,"→",null,null,"ダブルチェックへ"]
[null,null,null,null,null,"滞納無が確認できなかった場合のダブルチェック",null,null,null,null,null,null,null,null,null,null,null,null,null,null,null,null,null,null,null,null,null,null,null,null,null,null,null,"調査日",null,null,null,null,null,"／",null,null,null,"確認者"]
[null,null,null,"□滞納無"]
[null,null,null,"□滞納有",null,null,null,null,null,"□不明(氏名 住所 生年月日)不一致,該当者無 ",null,null,null,null,null,null,null,null,null,null,null,null,null,null,null,null,null,null,null,null,null,null,null,null,null,"→",null,"□後日、滞納無証明書提出済"]

{"sheet":"覚書","index":6,"n_rows":35,"n_cols":17,"rows_kept":35,"cut":false,"hidden":false,"merged":[[0,0,0,2],[22,14,22,16],[12,2,13,10],[4,1,4,2],[14,3,14,4],[19,14,19,15]]}
["浄化槽工事の適正な施工の確保に関する覚書",null,null,null,null,null,null,null,null,null,null,null,"第６条","　甲は、合併処理浄化槽設置整備事業実施要項（平成６年１０月"]
[null,null,null,null,null,null,null,null,null,null,null,null,null,"２０日付衛浄第６５号厚生省生活衛生局水道環境部長通知別紙）"]
["発注者　　　　　 　　　 　　　　",{"$f":"DBCS(IF(入力!C9=0,\"\",入力!C9))","v":""},"（以下「甲」という。）及び浄化槽",null,null,null,null,null,null,null,null,null,null,"第３の(5)のアの規定に基づく検査の結果､改善を要すると指摘を"]
[null,null,null,null,null,null,null,null,null,null,null,null,null,"受けた場合は、乙に対し相当の期限を定めてその瑕疵の修補を請"]
["工事業者　　　　　　　　　　　　　　　　 ",{"$f":"DBCS(入力!C72)","v":""},null,"（以下「乙」という。）は、",null,null,null,null,null,null,null,null,null,"求することができる。"]
["岡山市合併処理浄化槽設置整備事業補助金（以下「補助金」という。） ",null,null,null,null,null,null,null,null,null,null,null,2,"　甲は、法第７条の規定による、水質に関する検査を受け、その"]
["の交付をうけて甲が行う合併処理浄化槽の設置工事に関し、その適正な",null,null,null,null,null,null,null,null,null,null,null,null,"検査の結果、浄化槽の設置について、改善を要すると指摘を受け"]
["施工を確保するため、以下の条項により覚書を締結し、甲と乙は信義を",null,null,null,null,null,null,null,null,null,null,null,null,"た場合は、乙に対して相当の期限を定めてその瑕疵の修補を請求"]
["守り誠実にこれを履行する。",null,null,null,null,null,null,null,null,null,null,null,null,"することができる。"]
[null,null,null,null,null,null,null,null,null,null,null,null,3,"　前項に定める請求は、浄化槽の工事についての改善の指摘が甲"]
["第１条","　この覚書は、次に掲げる工事に適用する。",null,null,null,null,null,null,null,null,null,null,null,"の責に帰すべき事由に基づくものである場合には、することがで"]
[null,null,null,null,null,null,null,null,null,null,null,null,null,"きない。"]
["　 （１）工事の場所        ",null,{"$f":"\"岡山市\"&ASC(IF(入力!K31&入力!K34=0,\"\",入力!K31&入力!K34))","v":"岡山市"},null,null,null,null,null,null,null,null,null,"第７条","　乙は、甲から前条の規定により瑕疵の修補を求められた場合は"]
[null,null,null,null,null,null,null,null,null,null,null,null,null,"すみやかに行わなければならない。"]
["　 （２）工事の予定期間",null,"交付決定日以降","～令和",null,{"$f":"ASC(IF(入力!C61=0,\"\",IF(入力!C61<4,入力!C2+1,入力!C2)))","v":""},"年",{"$f":"ASC(入力!C61)","v":""},"月",{"$f":"ASC(入力!E61)","v":""},"日",null,"第８条","　この覚書に定めのない事項については、必要に応じて甲乙協議"]
[null,null,null,null,null,null,null,null,null,null,null,null,null,"のうえ定めるものとする。"]
["　 （３）設置する浄化槽",null,{"$f":"ASC(\"名称　\"&入力!C46)","v":"名称 "},null,null,null,null,null,null,null,null,null,"   以上覚書の証として、本書２通を作成し、当事者記名押印の上各自１"]
[null,null,null,null,null,null,null,null,null,null,null,null,"   通を保有する。"]
[null,null,{"$f":"ASC(\"型式　\"&入力!C47)","v":"型式 "}]
[null,null,null,null,null,null,null,null,null,null,null,null,null,null,"令和　　　年　　　月　　　日"]
[null,null,{"$f":"ASC(\"人槽　\"&入力!C49&\"　人槽\")","v":"人槽  人槽"},null,null,null,null,null,null,null,null,null,null,"                                                                                                                                   "]
["第２条","　乙は、補助金交付申請書に添付している図面（敷地内の給排水",null,null,null,null,null,null,null,null,null,null,null,"甲　発注者　","住 所"]
[null,"配管図、浄化槽配置図、浄化槽構造図等）及び仕様書に基づき、",null,null,null,null,null,null,null,null,null,null,null,null,{"$f":"ASC(IF(入力!C7=0,\"\",入力!C7))","v":""}]
[null,"前条の期間内に工事を完成し、所定の検査を行ったうえで目的物",null,null,null,null,null,null,null,null,null,null,null,null,"氏 名"]
[null,"を甲に引き渡すものとする。   ",null,null,null,null,null,null,null,null,null,null,null,null,{"$f":"DBCS(IF(入力!C9=0,\"\",入力!C9))","v":""},null,"印"]
["第３条","　乙は、この覚書に係る工事を浄化槽法（以下 「法」 という。）",null,null,null,null,null,null,null,null,null,null,null,"乙　浄化槽工事業者","住 所"]
[null,"第２９条第３項に従い浄化槽設備士に実地を監督させ、又は自ら ",null,null,null,null,null,null,null,null,null,null,null,null,{"$f":"DBCS(入力!C71)","v":""}]
[null,"浄化槽設備士の資格を有して、工事を実地に監督しなければなら",null,null,null,null,null,null,null,null,null,null,null,null,"氏 名"]
[null,"ない。",null,null,null,null,null,null,null,null,null,null,null,null,{"$f":"DBCS(IF(入力!C72=0,\"\",入力!C72))","v":""},null,"印"]
["第４条","　乙は、法第４条第３項の規定による浄化槽工事の技術上の基準    "]
[null,"にしたがって工事を行わなければならない。",null,null,null,null,null,null,null,null,null,null,null,"　（登録番号又は届出番号： ",{"$f":"ASC(IF(AND(入力!C74=0,入力!F74=0),\"\",入力!C74&\" \"&入力!E74&\" 第 \"&入力!H74&\" 号\"))","v":"  第  号"},null,"）"]
["第５条","　乙は、岡山市合併処理浄化槽設置整備事業補助金交付要綱に定  "]
[null,"める所定の書類及び写真を所定の期間内に甲に提出しなければな",null,null,null,null,null,null,null,null,null,null,null,"　（浄化槽設備士　氏名",{"$f":"DBCS(IF(入力!C75=0,\"\",入力!C75))","v":""},null,"）"]
[null,"らない。"]
[null,null,null,null,null,null,null,null,null,null,null,null,null,"備考　記名押印に代えて、署名することができる。"]

{"sheet":"実績報告審査票","index":7,"n_rows":39,"n_cols":34,"rows_kept":39,"cut":false,"hidden":false,"merged":[[10,0,10,6],[10,7,10,9],[4,0,5,2],[4,3,5,7],[4,8,4,24],[10,16,11,35],[10,14,11,15],[11,0,12,6],[8,0,8,2],[8,3,8,10],[8,11,8,13],[8,14,8,16],[8,17,8,20],[11,10,12,10],[8,21,8,35],[11,8,12,8],[0,0,0,35],[5,8,5,24],[6,0,6,2],[6,3,6,7],[6,8,6,10],[6,11,6,35],[24,0,25,6],[25,14,27,35],[13,0,13,6],[13,14,14,35],[14,0,14,6],[15,0,15,6],[16,0,16,6],[17,0,17,6],[17,14,18,16],[18,0,19,6],[19,14,20,16],[19,17,20,25],[20,0,21,6],[21,14,23,16],[22,0,23,6],[26,0,26,6],[27,0,28,6],[27,10,27,12],[28,14,29,15],[29,0,29,6],[29,7,29,9],[29,10,29,12],[34,0,34,1],[34,2,34,4],[34,5,34,32],[34,33,34,35],[32,0,32,1],[32,2,32,4],[32,5,32,32],[32,33,32,35],[33,0,33,1],[33,2,33,4],[33,5,33,32],[33,33,33,35],[35,0,36,1],[35,2,35,4],[35,5,35,32],[35,33,35,35],[36,2,36,4],[36,5,36,32],[36,33,36,35],[37,0,37,1],[37,2,37,4],[37,5,37,32],[37,33,37,35],[38,0,38,1],[38,2,38,4],[38,5,38,32],[38,33,38,35],[18,8,19,8],[20,8,26,8],[27,8,28,8],[11,7,12,7],[11,9,12,9],[18,7,19,7],[18,9,19,9],[20,7,26,7],[20,9,26,9],[27,7,28,7],[27,9,28,9],[15,14,16,16],[15,17,16,35],[21,17,23,35],[28,16,29,28],[30,16,30,35],[30,14,30,15],[28,29,29,35],[19,26,20,28],[19,29,20,35],[11,38,12,38],[18,38,19,38],[20,38,26,38],[27,38,28,38],[17,17,18,35]]}
["実　績　報　告　審　査　票"]
[]
["提出書類・写真を確認の上、太線の中を記入し提出してください。"]
[]
["交付決定\n番　　号",null,null,"補助事業者氏名",null,null,null,null,{"$f":"DBCS(IF(入力!C8=0,\"\",入力!C8))","v":""}]
[null,null,null,null,null,null,null,null,{"$f":"DBCS(IF(入力!C9=0,\"\",入力!C9))","v":""}]
[{"$f":"ASC(IF(入力!G5=0,\"\",入力!G5))","v":""},null,null,"設  置  場  所",null,null,null,null,"岡山市",null,null,{"$f":"DBCS(IF(入力!K31&入力!K34=0,\"\",入力!K31&入力!K34))","v":""}]
[]
["申請手続",null,null,{"$f":"DBCS(入力!C66)","v":""},null,null,null,null,null,null,null,"担当者",null,null,{"$f":"DBCS(入力!C67)","v":""},null,null,"TEL",null,null,null,{"$f":"ASC(入力!C68)","v":""}]
[]
["提　出　書　類",null,null,null,null,null,null,"ﾁｪｯｸ",null,null,null,null,null,null,null,null,"口座振込依頼書及び通帳の写しを添付"]
["実績報告書"]
[]
["変更届出書",null,null,null,null,null,null,null,null,null,null,null,null,null,"ゆうちょ銀行以外の金融機関（通帳の写しを添付）"]
["(住民票)"]
["完工図面",null,null,null,null,null,null,null,null,null,null,null,null,null,"金融機関名"]
["保証登録証"]
["請求書又は領収書の写し",null,null,null,null,null,null,null,null,null,null,null,null,null,"支店名"]
["チェックリスト"]
[null,null,null,null,null,null,null,null,null,null,null,null,null,null,"口座種別",null,null,"■普通",null,null,null,null,null,null,null,null,"・",null,null,"□当座"]
["その他"]
[null,null,null,null,null,null,null,null,null,null,null,null,null,null,"口座番号"]
[]
[]
[]
[null,null,null,null,null,null,null,null,null,null,null,null,null,null,"ゆうちょ銀行（通帳の写しを添付）"]
[]
["補助金交付請求書"]
[null,null,null,null,null,null,null,null,null,null,null,null,null,null,"記号"]
[]
[null,null,null,null,null,null,null,null,null,null,null,null,null,null,"番号"]
[]
[null,null,"日付",null,null,"指　　　摘　　　事　　　項",null,null,null,null,null,null,null,null,null,null,null,null,null,null,null,null,null,null,null,null,null,null,null,null,null,null,null,"担　当"]
["受 付",null,"／"]
["入 力",null,"／"]
["係 員",null,"／"]
[null,null,"／"]
["室 長",null,"／"]
["連 絡",null,"／"]

{"sheet":"実績報告書","index":8,"n_rows":41,"n_cols":19,"rows_kept":41,"cut":false,"hidden":false,"merged":[[38,13,38,19],[32,10,32,14],[33,10,33,14],[35,10,35,14],[36,10,36,14],[32,15,32,17],[34,10,34,14],[34,15,34,17],[37,10,37,14],[37,15,37,17],[33,15,33,17],[32,1,32,4],[36,1,36,4],[30,1,30,9],[32,5,32,8],[36,15,36,17],[35,15,35,17],[31,1,31,9],[31,10,31,18],[37,5,37,8],[34,1,34,4],[34,5,34,8],[37,1,37,4],[33,1,33,4],[35,1,35,4],[35,5,35,8],[33,5,33,8],[36,5,36,8],[27,2,27,18],[29,2,29,18],[28,1,28,9],[22,5,22,6],[22,7,22,18],[26,1,26,9],[23,13,23,18],[24,13,24,18],[24,4,24,9],[23,10,23,12],[24,10,24,12],[25,12,25,17],[26,12,26,13],[2,0,2,18],[25,1,25,9],[22,1,22,4],[4,12,4,13],[11,12,11,18],[16,0,16,18],[18,0,18,18],[14,17,14,18],[20,0,20,18],[14,0,14,1],[14,10,14,15],[14,2,14,3],[14,7,14,8],[24,1,24,3],[23,4,23,9],[8,12,10,18]]}
["様式第５号（第９条関係）"]
[]
["実　　績　　報　　告　　書"]
[]
[null,null,null,null,null,null,null,null,null,null,null,"令和",{"$f":"ASC(IF(入力!G3=0,\"\",IF(入力!G3<4,入力!C2+1,入力!C2)))","v":""},null,"年",{"$f":"ASC(入力!G3)","v":""},"月",{"$f":"ASC(入力!I3)","v":""},"日"]
[]
["岡　山　市　長   様"]
[]
[null,null,null,null,null,null,null,"補助事業者",null,null,"住　 所",null,{"$f":"ASC(IF(入力!C7=0,\"\",入力!C7))","v":""}]
[]
[]
[null,null,null,null,null,null,null,null,null,null,"氏　 名",null,{"$f":"DBCS(IF(入力!C9=0,\"\",入力!C9))","v":""}]
[]
[]
["令和",null,{"$f":"ASC(IF(入力!G4=0,\"\",IF(入力!G4<4,入力!C2+1,入力!C2)))","v":""},null,"年",{"$f":"ASC(入力!G4)","v":""},"月",{"$f":"ASC(入力!I4)","v":""},null,"日","付け岡環保浄第",null,null,null,null,null,{"$f":"ASC(入力!G5)","v":""},"号で"]
[]
["補助金交付決定の通知を受けた補助事業については、下記のとおり完了したので、"]
[]
["岡山市合併処理浄化槽設置整備事業補助金交付要綱第９条の規定により報告します。"]
[]
["記"]
[]
[null,"設置場所",null,null,null,"岡山市",null,{"$f":"ASC(IF(入力!K31&入力!K34=0,\"\",入力!K31&入力!K34))","v":""}]
[null,"浄化槽機種",null,null,{"$f":"ASC(入力!C47)","v":""},null,null,null,null,null,"人槽",null,null,{"$f":"ASC(入力!C49)","v":""}]
[null,"製造番号",null,null,{"$f":"ASC(入力!G53)","v":""},null,null,null,null,null,"ブロワー型式",null,null,{"$f":"ASC(入力!G54)","v":""}]
[null,"補助金交付決定額",null,null,null,null,null,null,null,null,null,"金",{"$f":"IFERROR(F33,\"\")","v":0},null,null,null,null,null,"円"]
[null,"事業完了年月日",null,null,null,null,null,null,null,null,null,"令和",{"$f":"ASC(IF(入力!G61=0,\"\",IF(入力!G61<4,入力!C2+1,入力!C2)))","v":""},null,"年",{"$f":"ASC(入力!G61)","v":""},"月",{"$f":"ASC(入力!I61)","v":""},"日"]
[null,null,"工事内容については別添チェックリストのとおり"]
[null,"維持管理体制"]
[null,null,"補助金申請時に添付した浄化槽維持管理及び水質検査契約書のとおり"]
[null,"収支決算及び実績額"]
[null,"収　入　の　部",null,null,null,null,null,null,null,null," 支　出　の　部"]
[null,"市補助金",null,null,null,{"$f":"IFERROR(SUM(F34:I36),\"\")","v":0},null,null,null,"円","本体価格",null,null,null,null,{"$f":"入力!G56","v":0},null,null,"円"]
[null,"浄化槽設置分",null,null,null,{"$f":"'収支決算及び実績額(提出不要・削除禁止)'!AM3*1000","v":0},null,null,null,"円","埋設工事費",null,null,null,null,{"$f":"入力!G57","v":0},null,null,"円"]
[null,"※1　配管工事分",null,null,null,{"$f":"'収支決算及び実績額(提出不要・削除禁止)'!AM7*1000","v":0},null,null,null,"円","※1　配管工事費",null,null,null,null,{"$f":"入力!G58","v":0},null,null,"円"]
[null,"※2　撤去工事分",null,null,null,{"$f":"'収支決算及び実績額(提出不要・削除禁止)'!AM11*1000","v":0},null,null,null,"円","※2　撤去工事費",null,null,null,null,{"$f":"入力!G59","v":0},null,null,"円"]
[null,"自己資金",null,null,null,{"$f":"IFERROR(P38-F33,\"\")","v":0},null,null,null,"円","消費税",null,null,null,null,{"$f":"入力!G60","v":0},null,null,"円"]
[null,"計",null,null,null,{"$f":"IFERROR(F33+F37,\"\")","v":0},null,null,null,"円","計",null,null,null,null,{"$f":"SUM(P33:R37)","v":0},null,null,"円"]
[]
[null,"※1　単独転換又は汲取り転換に伴う宅内配管工事補助を申請する場合は記入してください。"]
[null,"※2　汲取り転換に伴う便槽撤去工事補助を申請する場合は記入してください。"]

{"sheet":"変更届出書","index":9,"n_rows":37,"n_cols":20,"rows_kept":37,"cut":false,"hidden":false,"merged":[[22,17,36,17],[23,13,24,13],[23,14,24,14],[13,12,15,16],[8,10,8,11],[16,12,16,16],[32,15,33,15],[32,16,33,16],[35,15,36,15],[35,16,36,16],[22,5,22,8],[22,9,22,12],[19,1,19,15],[21,1,21,4],[21,5,21,8],[21,9,21,12],[21,13,21,16],[22,13,22,14],[3,14,4,15],[2,2,2,3],[2,4,2,6],[2,7,2,8],[2,9,2,10],[2,11,2,13],[2,14,2,15],[3,2,4,3],[3,4,4,6],[3,7,4,8],[3,9,4,10],[3,11,4,13],[6,2,6,15],[23,15,24,15],[23,16,24,16],[25,1,27,4],[25,13,25,14],[26,13,27,13],[26,14,27,14],[26,15,27,15],[26,16,27,16],[23,5,23,8],[24,5,24,8],[23,9,23,12],[24,9,24,12],[25,5,25,8],[25,9,25,12],[22,1,24,4],[26,5,26,8],[29,15,30,15],[29,16,30,16],[30,5,30,8],[30,9,30,12],[26,9,26,12],[27,5,27,8],[27,9,27,12],[28,1,30,4],[28,5,28,8],[28,9,28,12],[28,13,28,14],[29,5,29,8],[29,9,29,12],[29,13,30,13],[29,14,30,14],[31,1,33,4],[31,5,31,8],[31,9,31,12],[31,13,31,14],[32,5,32,8],[32,9,32,12],[32,13,33,13],[32,14,33,14],[33,5,33,8],[33,9,33,12],[34,1,36,4],[34,5,34,8],[34,9,34,12],[34,13,34,14],[35,5,35,8],[35,9,35,12],[35,13,36,13],[35,14,36,14],[36,5,36,8],[36,9,36,12]]}
[null,"（第８条関係）"]
[]
[null,null,"課　　長",null,"課 長 代 理",null,null,"課長補佐",null,"主　　任",null,"課　　　　員",null,null,"担当者"]
[]
[]
[]
[null,null,"変　更　届　出　書"]
[]
[null,null,null,null,null,null,null,null,null,"令和",{"$f":"ASC(IF(入力!G3=0,\"\",IF(入力!G3<4,入力!C2+1,入力!C2)))","v":""},null,"年",{"$f":"ASC(入力!G3)","v":""},"月",{"$f":"ASC(入力!I3)","v":""},"日"]
[]
[null,"　岡　山　市　長　様"]
[]
[]
[null,null,null,null,null,null,null,"　補助事業者",null,null,"住　所",null,{"$f":"ASC(IF(入力!C7=0,\"\",入力!C7))","v":""}]
[]
[]
[null,null,null,null,null,null,null,null,null,null,"氏　名",null,{"$f":"DBCS(IF(入力!C9=0,\"\",入力!C9))","v":""}]
[]
[]
[null,"　補助申請内容に変更があったので、次のとおり届出ます。"]
[]
[null,"変　更　内　容",null,null,null,"変　更　前",null,null,null,"変　更　後",null,null,null,"変 更 年 月 日"]
[null,null,null,null,null,null,null,null,null,null,null,null,null,"令和",null,{"$f":"ASC(IF(N24=0,\"\",IF(N24<4,入力!C2+1,入力!C2)))","v":""},"年","色のついたセルに入力してください。",{"$f":"IFERROR(VLOOKUP(F23,'マスタ (申請・工事業者)'!I:K,2,FALSE),\"\")","v":""},{"$f":"IFERROR(VLOOKUP(J23,'マスタ (申請・工事業者)'!I:K,2,FALSE),\"\")","v":""}]
[null,null,null,null,null,null,null,null,null,null,null,null,null,null,"月",null,"日",null,{"$f":"IFERROR(VLOOKUP(F23,'マスタ (申請・工事業者)'!I:K,3,FALSE),\"\")","v":""},{"$f":"IFERROR(VLOOKUP(J23,'マスタ (申請・工事業者)'!I:K,3,FALSE),\"\")","v":""}]
[null,null,null,null,null,{"$f":"IF(AND(S23=0,S24=0),\"\",ASC(IF(S23=0,S24,S23)))","v":""},null,null,null,{"$f":"IF(AND(T23=0,T24=0),\"\",ASC(IF(T23=0,T24,T23)))","v":""}]
[null,null,null,null,null,null,null,null,null,null,null,null,null,"令和",null,{"$f":"ASC(IF(N27=0,\"\",IF(N27<4,入力!C2+1,入力!C2)))","v":""},"年",null,{"$f":"IFERROR(VLOOKUP(F26,'マスタ (申請・工事業者)'!I:K,2,FALSE),\"\")","v":""},{"$f":"IFERROR(VLOOKUP(J26,'マスタ (申請・工事業者)'!I:K,2,FALSE),\"\")","v":""}]
[null,null,null,null,null,null,null,null,null,null,null,null,null,null,"月",null,"日",null,{"$f":"IFERROR(VLOOKUP(F26,'マスタ (申請・工事業者)'!I:K,3,FALSE),\"\")","v":""},{"$f":"IFERROR(VLOOKUP(J26,'マスタ (申請・工事業者)'!I:K,3,FALSE),\"\")","v":""}]
[null,null,null,null,null,{"$f":"IF(AND(S26=0,S27=0),\"\",ASC(IF(S26=0,S27,S26)))","v":""},null,null,null,{"$f":"IF(AND(T26=0,T27=0),\"\",ASC(IF(T26=0,T27,T26)))","v":""}]
[null,null,null,null,null,null,null,null,null,null,null,null,null,"令和",null,{"$f":"ASC(IF(N30=0,\"\",IF(N30<4,入力!C2+1,入力!C2)))","v":""},"年",null,{"$f":"IFERROR(VLOOKUP(F29,'マスタ (申請・工事業者)'!I:K,2,FALSE),\"\")","v":""},{"$f":"IFERROR(VLOOKUP(J29,'マスタ (申請・工事業者)'!I:K,2,FALSE),\"\")","v":""}]
[null,null,null,null,null,null,null,null,null,null,null,null,null,null,"月",null,"日",null,{"$f":"IFERROR(VLOOKUP(F29,'マスタ (申請・工事業者)'!I:K,3,FALSE),\"\")","v":""},{"$f":"IFERROR(VLOOKUP(J29,'マスタ (申請・工事業者)'!I:K,3,FALSE),\"\")","v":""}]
[null,null,null,null,null,{"$f":"IF(AND(S29=0,S30=0),\"\",ASC(IF(S29=0,S30,S29)))","v":""},null,null,null,{"$f":"IF(AND(T29=0,T30=0),\"\",ASC(IF(T29=0,T30,T29)))","v":""}]
[null,null,null,null,null,null,null,null,null,null,null,null,null,"令和",null,{"$f":"ASC(IF(N33=0,\"\",IF(N33<4,入力!C2+1,入力!C2)))","v":""},"年",null,{"$f":"IFERROR(VLOOKUP(F32,'マスタ (申請・工事業者)'!I:K,2,FALSE),\"\")","v":""},{"$f":"IFERROR(VLOOKUP(J32,'マスタ (申請・工事業者)'!I:K,2,FALSE),\"\")","v":""}]
[null,null,null,null,null,null,null,null,null,null,null,null,null,null,"月",null,"日",null,{"$f":"IFERROR(VLOOKUP(F32,'マスタ (申請・工事業者)'!I:K,3,FALSE),\"\")","v":""},{"$f":"IFERROR(VLOOKUP(J32,'マスタ (申請・工事業者)'!I:K,3,FALSE),\"\")","v":""}]
[null,null,null,null,null,{"$f":"IF(AND(S32=0,S33=0),\"\",ASC(IF(S32=0,S33,S32)))","v":""},null,null,null,{"$f":"IF(AND(T32=0,T33=0),\"\",ASC(IF(T32=0,T33,T32)))","v":""}]
[null,null,null,null,null,null,null,null,null,null,null,null,null,"令和",null,{"$f":"ASC(IF(N36=0,\"\",IF(N36<4,入力!C2+1,入力!C2)))","v":""},"年",null,{"$f":"IFERROR(VLOOKUP(F35,'マスタ (申請・工事業者)'!I:K,2,FALSE),\"\")","v":""},{"$f":"IFERROR(VLOOKUP(J35,'マスタ (申請・工事業者)'!I:K,2,FALSE),\"\")","v":""}]
[null,null,null,null,null,null,null,null,null,null,null,null,null,null,"月",null,"日",null,{"$f":"IFERROR(VLOOKUP(F35,'マスタ (申請・工事業者)'!I:K,3,FALSE),\"\")","v":""},{"$f":"IFERROR(VLOOKUP(J35,'マスタ (申請・工事業者)'!I:K,3,FALSE),\"\")","v":""}]
[null,null,null,null,null,{"$f":"IF(AND(S35=0,S36=0),\"\",ASC(IF(S35=0,S36,S35)))","v":""},null,null,null,{"$f":"IF(AND(T35=0,T36=0),\"\",ASC(IF(T35=0,T36,T35)))","v":""}]

{"sheet":"チェックリスト","index":10,"n_rows":49,"n_cols":10,"rows_kept":49,"cut":false,"hidden":false,"merged":[[37,0,38,0],[37,1,38,1],[38,2,38,4],[42,2,42,5],[42,9,42,12],[41,2,41,5],[39,0,42,0],[39,1,42,1],[39,2,39,4],[40,2,40,4],[37,2,37,4],[17,0,18,0],[16,2,16,4],[7,2,7,3],[19,1,23,1],[19,0,25,0],[24,2,24,4],[25,2,25,4],[8,2,8,4],[13,2,13,4],[14,2,14,4],[15,2,15,4],[9,2,9,3],[17,1,18,1],[17,2,17,4],[18,2,18,3],[18,4,18,5],[0,0,0,1],[1,0,1,1],[7,9,7,10],[18,9,18,10],[41,9,41,12],[3,0,5,0],[3,2,3,4],[4,2,4,4],[5,2,5,4],[10,0,12,0],[10,1,12,1],[10,2,10,4],[11,2,11,4],[12,2,12,4],[6,2,6,4],[7,4,7,5],[0,4,0,5],[1,4,1,5],[2,2,2,4],[31,2,31,4],[32,2,32,4],[19,2,19,4],[20,2,20,4],[21,2,21,4],[22,2,22,4],[23,2,23,4],[30,0,36,0],[30,2,30,4],[33,2,33,4],[26,0,29,0],[26,2,26,4],[27,2,27,4],[28,2,28,4],[29,2,29,4],[34,2,34,4],[35,2,35,4],[36,2,36,4],[30,1,33,1],[26,1,27,1],[48,2,48,4],[43,0,47,0],[43,1,47,1],[43,2,43,4],[44,2,44,4],[45,2,45,4],[46,2,46,4],[47,2,47,4]]}
["補助事業者氏名",null,{"$f":"DBCS(IF(入力!C9=0,\"\",入力!C9))","v":""},"浄化槽設備士氏名",{"$f":"I1","v":""},null,null,{"$f":"変更届出書!J23&変更届出書!J26&変更届出書!J29&変更届出書!J32&変更届出書!J35","v":""},{"$f":"IF(AND(変更届出書!J23=0,変更届出書!J26=0,変更届出書!J29=0,変更届出書!J32=0,変更届出書!J35=0),交付申請書!O56,H1)","v":""}]
["設置場所",null,{"$f":"入力!C35","v":""},"免状(修了)番号",{"$f":"I3","v":""},null,"一括チェック"]
["写真NO.","工程","チ　ェ　ッ　ク　ポ　イ　ン　ト",null,null,null,null,{"$f":"変更届出書!J25&変更届出書!J28&変更届出書!J31&変更届出書!J34&変更届出書!J37","v":""},{"$f":"IF(COUNTBLANK(H3)<>0,交付申請書!AP56,H3)","v":""}]
[null,"着工前写真","浄化槽設備士、標識板、工事看板及び埋設予定場所全体が、周囲の状況とともに写っているか。また、宅内配管工事費用及び便槽撤去工事費用を申請する場合は、工事看板及び水廻りを有する建物の外周とその付近の地面についても写っているか。"]
[null,{"$f":"ASC(CONCATENATE(入力!G4,入力!H4,入力!I4,入力!J4))","v":"月日"},"工事看板の設置場所・補助事業者名・交付決定日及び交付決定番号に誤りはないか。"]
[null,{"$f":"\"第\"&ASC(入力!G5)&\"号\"","v":"第号"},"浄化槽設備士は、ヘルメットをかぶり、正面を向いて、人物が特定できるか。"]
[null,"床掘り","全体を平坦に均した状態であるか。"]
[null,"栗石・砕石敷き","栗石又は砕石が全体に均一に敷かれ、10cm以上の厚みはあるか。",null,"厚み　　　　　㎝（≧10cm）　",null,null,null,null,"厚み　　　　　㎝（≧10cm）　"]
[null,"配筋・　　　　　　　コンクリート打設","底版コンクリート２次製品を使用する場合、対応機種に合ったものが使用されているか。\n底版コンクリート２次製品を使用しない場合、コンクリートが全体に均一に打設され、底面全体の状況および厚み(≧15cm）、配筋の間隔(≦20cm)および硬化状況は十分か。"]
[null,"吊り込み","埋設される浄化槽の機種に相違はないか。",null,{"$f":"ASC(入力!C47)","v":""}]
[null,"水張り・　　　　　　水平確認","埋め戻し前か。"]
[null,null,"水張りをしながら、長辺方向及び短辺方向の水平確認を行っているか。"]
[null,null,"漏水生じていないか。"]
[null,"埋戻し・水締め","水平が保たれているか。"]
[null,"転圧・埋戻完了","埋戻しが終了した後、全体を十分突き固めているか。"]
[null,"上部スラブ配筋","配筋はマンホールの強度を十分考慮し、補強が的確に行われているか。"]
[null,"工事完了写真","浄化槽設備士が完了を確認していることが分かるよう、浄化槽設備士とともに着工前写真と同じ方向から、埋設場所全体が分かるように撮影されているか。"]
[null,"かさ上げ","コンクリートスラブが打たれ、マンホール枠の上端まで固定されているか（粗打ちの場合は仕上げ工事完了まで安全面に留意することを確認したか。）。"]
[null,null,"バルブの操作などの維持管理を容易に行うことができるか。",null,"高さ　　　　　ｃｍ（≦30cm）",null,null,null,null,"高さ　　　　　ｃｍ（≦30cm）"]
[null,"浄化槽稼働","嫌気ろ床槽のろ材及び接触ばっ気槽の接触材に変形や破損はないか。しっかり固定されているか。"]
[null,null,"ばっ気装置、逆流装置及び汚泥移送装置の変形や破損はないか。しっかり固定されているか。"]
[null,null,"空気の出方や水流に片寄りはないか。"]
[null,null,"消毒設備に変形や破損はないか。しっかり固定されているか。"]
[null,null,"薬剤筒は傾いていないか。"]
[null,"製造番号","保守点検、清掃を行いにくい場所に設置されていないか。"]
[null,{"$f":"ASC(入力!G53)","v":""},"保守点検、清掃の支障となるものが置かれていないか。"]
[null,"ブロワー　　　　　　　設置状況","防振対策がされているか。"]
[null,null,"固定が十分行われているか。"]
[null,"型式","アースが必要な機種か確認し、必要な場合は接続されているか。"]
[null,{"$f":"ASC(入力!G54)","v":""},"漏電のおそれはないか。"]
[null,"ポンプ槽","上部コンクリートスラブが打たれ、フロートスイッチのケーブルが絡むことのないよう設置されているか。"]
[null,null,"ポンプますに変形や破損はないか。"]
[null,null,"ポンプますに漏水のおそれはないか。"]
[null,null,"設計どおりの台数及び能力のポンプが設置されているか。"]
[null,{"$f":"IF(入力!C52=0,\"\",入力!C52)","v":""},"ポンプの固定が十分行われているか。"]
[null,null,"ポンプの取りはずしが可能か。"]
[null,null,"ポンプ位置や配管がレベルスイッチの稼働を妨げるおそれはないか。"]
[null,"放流先","申請時又は変更等承認申請時と同じ公共の放流先か。"]
[null,null,"放流口と放流先の水路等の水位差が適切に保たれ、逆流のおそれはないか。"]
[null,"台所専用升      ※クリーン升は内径のみ記入。別途仕様書提出のこと（旧御津町のみ）","台所排水専用となっているか。"]
[null,null,"油止め構造になっているか。"]
[null,null,"内径　　　　　　　cm(≧30cm)　　・　　水深　　　　　　　cm(≧25cm)　　・　　継足　　　　　　　cm(≧15cm)",null,null,null,null,null,null,"内径　　　　　　　cm(≧30cm)　　・　　水深　　　　　　　cm(≧25cm)　　・　　継足　　　　　　　cm(≧15cm)"]
[null,null,"内径　　　　　　　cm(≧30cm)　　・　　水深　　　　　　　cm(≧25cm)　　・　　継足　　　　　　　cm(≧15cm)",null,null,null,null,null,null,"内径　　　　　　　cm(≧30cm)　　・　　水深　　　　　　　cm(≧25cm)　　・　　継足　　　　　　　cm(≧15cm)"]
[null,"配管経路・各桝","汚物や汚水の停滞がないか。"]
[null,null,"生活排水が全て接続されているか。"]
[null,null,"雨水や工場排水等が流入していないか。"]
[null,null,"起点、屈曲点、合流点及び一定間隔ごとに適切な升が設置されているか。"]
[null,null,"流入管きょ、放流管きょ及び空気配管の露出等により変形、破損のおそれはないか。"]
[null,"撤去写真","撤去予定のものが全て撮影されているか。",null,null,null,null,{"$f":"IF(入力!K44=\"　　\",\"□\",\"■\")","v":"□"}]

{"sheet":"交付請求書","index":11,"n_rows":30,"n_cols":12,"rows_kept":30,"cut":false,"hidden":false,"merged":[[32,1,32,10],[33,3,33,4],[35,3,35,9],[21,1,21,15],[23,1,23,15],[27,1,27,15],[29,3,29,4],[29,7,29,10],[31,3,31,4],[19,1,19,15],[3,1,3,15],[12,11,13,15],[15,11,15,15],[6,10,6,16]]}
[null,"様式第７号（第１１条関係）"]
[]
[]
[null,"補　助　金　交　付　請　求　書"]
[]
[]
[null,null,null,null,null,null,null,null,null,null,"令和 　 　　　年　　　　月　　　　日"]
[]
[]
[null,"岡　山　市　長    様"]
[]
[]
[null,null,null,null,null,"補助事業者",null,null,"住　所　",null,null,{"$f":"ASC(IF(入力!C7=0,\"\",入力!C7))","v":""}]
[]
[]
[null,null,null,null,null,null,null,null,"氏　名　　　",null,null,{"$f":"DBCS(IF(入力!C9=0,\"\",入力!C9))","v":""}]
[]
[]
[]
[null,"　令和　　 　年　　 　月　　 　日付け岡環保浄第　　 　　　　　　号で補助金交付額の確定通知のあった"]
[]
[null,"岡山市合併処理浄化槽設置整備事業補助金の支払いを受けたいので、岡山市合併処理浄化槽"]
[]
[null,"設置整備事業補助金交付要綱第１１条の規定により下記のとおり請求します。"]
[]
[]
[]
[null,"記"]
[]
[null,null,null,"請  求  金  額",null,null,"金",{"$f":"IFERROR(SUM(実績報告書!F34:I36),\"\")","v":0},null,null,null,"円"]

{"sheet":"口振依頼書","index":12,"n_rows":48,"n_cols":52,"rows_kept":48,"cut":false,"hidden":false,"merged":[[21,18,21,40],[47,3,49,51],[42,46,43,47],[42,48,43,49],[42,50,43,51],[40,46,40,47],[40,48,40,49],[40,50,40,51],[40,44,40,45],[24,1,26,54],[28,0,28,9],[29,0,29,53],[17,1,21,9],[17,12,17,13],[19,13,19,16],[42,52,43,53],[44,20,46,29],[44,38,46,53],[42,28,43,29],[42,30,43,37],[42,38,43,39],[42,40,43,41],[42,42,43,43],[42,44,43,45],[40,52,40,53],[42,2,43,10],[42,13,43,18],[42,20,43,21],[42,22,43,23],[42,24,43,25],[42,26,43,27],[31,1,40,11],[32,31,38,33],[34,51,34,52],[36,51,36,52],[40,12,40,18],[40,19,40,31],[40,32,40,39],[40,40,40,41],[40,42,40,43],[4,49,4,50],[4,51,4,52],[4,47,4,48],[17,14,17,18],[17,20,17,25],[31,12,39,29],[31,35,39,49],[2,13,2,38],[4,38,4,40],[4,41,4,42],[4,43,4,44],[4,45,4,46],[6,3,6,14],[8,2,8,53],[11,1,14,9],[11,12,11,17],[11,21,11,52],[14,12,14,17],[14,21,14,52],[19,18,19,53],[20,18,20,45]]}
[]
[]
[null,null,null,null,null,null,null,null,null,null,null,null,null,"口座振込依頼書"]
[null,null,null,null," "]
[null,null,null,null,null,null,null,null,null,null,null,null,null,null,null,null,null,null,null,null,null,null,null,null,null,null,null,null,null,null,null,null,null,null,null,null,null,null,"令和",null,null,null,null,"年",null,null,null,"月",null,null,null,"日"]
[]
[null,null,null,"岡 山 市 長   様"]
[]
[null,null,"合併処理浄化槽設置整備事業補助金を下記口座に振込むよう依頼します。"]
[]
[]
[null,"補助金申請者\n\n(口座名義人)",null,null,null,null,null,null,null,null,null,null,"フリガナ",null,null,null,null,null,null,null,null,{"$f":"DBCS(IF(入力!C8=0,\"\",入力!C8))","v":""}]
[]
[null,null,null,null,null,null,null,null,null,null,null,null,null,null,null," "]
[null,null,null,null,null,null,null,null,null,null,null,null,"氏名",null,null,null,null,null,null,null,null,{"$f":"DBCS(IF(入力!C9=0,\"\",入力!C9))","v":""}]
[]
[]
[null,"連絡先",null,null,null,null,null,null,null,null,null,null,"〒",null,{"$f":"ASC(IF(入力!C6=0,\"\",LEFT(入力!C6,3)))","v":""},null,null,null,null,"-",{"$f":"ASC(IF(入力!C6=0,\"\",RIGHT(入力!C6,4)))","v":""}]
[]
[null,null,null,null,null,null,null,null,null,null,null,null,null,"住　所",null,null,null,null,{"$f":"ASC(IF(入力!C7=0,\"\",入力!C7))","v":""}]
[]
[null,null,null,null,null,null,null,null,null,null,null,null,null,"ＴＥＬ",null,null,null,null,{"$f":"ASC(IF(入力!C10=0,\"\",入力!C10))","v":""}]
[]
[]
[null,"　※補助金申請者の口座にしか振込めません。誤ってご家族名義の口座を記入しない\n　　ように注意してください。なお、銀行印や認印の押印は不要です。"]
[]
[]
[]
["振込先口座"]
["(ゆうちょ銀行以外の金融機関 または ゆうちょ銀行 どちらか一つの欄に記入してください)"]
[]
[null,"ゆうちょ銀行\n\n以 外 の\n\n 金 融 機 関"]
[null,null,null,null,null,null,null,null,null,null,null,null,null,null,null,null,null,null,null,null,null,null,null,null,null,null,null,null,null,null,null,"銀行\n\n金庫\n\n農協\n\n信組"]
[]
[null,null,null,null,null,null,null,null,null,null,null,null,null,null,null,null,null,null,null,null,null,null,null,null,null,null,null,null,null,null,null,null,null,null,null,null,null,null,null,null,null,null,null,null,null,null,null,null,null,null,null,"店"]
[]
[null,null,null,null,null,null,null,null,null,null,null,null,null,null,null,null,null,null,null,null,null,null,null,null,null,null,null,null,null,null,null,null,null,null,null,null,null,null,null,null,null,null,null,null,null,null,null,null,null,null,null,"所"]
[]
[]
[]
[null,null,null,null,null,null,null,null,null,null,null,null,"口座種別",null,null,null,null,null,null,"普　通　　当　座",null,null,null,null,null,null,null,null,null,null,null,null,"口座番号"]
[]
[null,null,"ゆうちょ銀行",null,null,null,null,null,null,null,null,null,null,"記　　号",null,null,null,null,null,null,null,null,null,null,null,null,null,null,null,null,"番　　号"]
[]
[null,null,null,null,null,null,null,null,null,null,null,null,null,null,null,null,null,null,null,null,"（５桁）",null,null,null,null,null,null,null,null,null,null,null,null,null,null,null,null,null,"（最大８桁）\n右づめでご記入ください。"]
[]
[]
[null,null,null,"※記号と番号の間に数字が入っている場合、「その数字」は記入しないでください。\n　　　　　　　\n例　〇〇〇〇〇－１－△△△△△△△△　　　　　"]

{"sheet":"変更等承認","index":13,"n_rows":36,"n_cols":20,"rows_kept":36,"cut":false,"hidden":false,"merged":[[29,2,29,9],[30,2,30,9],[29,10,29,19],[30,10,30,19],[3,1,3,19],[23,1,23,19],[11,15,13,19],[6,12,6,19],[14,15,14,19],[20,0,20,19],[36,2,41,19],[18,0,18,19],[25,2,25,9],[35,2,35,7],[16,8,16,9],[16,17,16,18],[32,2,32,19],[34,2,34,19],[16,2,16,3],[16,11,16,16],[16,5,16,6],[16,0,16,1],[25,11,25,15],[33,10,33,13],[28,2,28,9],[28,10,28,19]]}
[null,"様式第４号（第８条関係）"]
[]
[]
[null,"変　更　等　承　認　申　請　書"]
[]
[]
[null,null,null,null,null,null,null,null,null,null,null,null,"令和 　 　　　年　　　　月　　　　日"]
[]
[null,"岡　山　市　長    様"]
[]
[]
[null,null,null,null,null,null,null,null,null,null,"補助事業者",null,null,"住　所",null,{"$f":"ASC(IF(入力!C7=0,\"\",入力!C7))","v":""}]
[]
[]
[null,null,null,null,null,null,null,null,null,null,null,null,null,"氏　名",null,{"$f":"DBCS(IF(入力!C9=0,\"\",入力!C9))","v":""}]
[]
["令和",null,{"$f":"ASC(IF(入力!C4=0,\"\",IF(入力!G11<4,入力!C4+1,入力!C4)))","v":""},null,"年",{"$f":"ASC(入力!G11)","v":""},null,"月",{"$f":"ASC(入力!I11)","v":""},null,"日","付け岡環保浄第",null,null,null,null,null,{"$f":"ASC(入力!G12)","v":""},null,"号で"]
[]
["補助金交付決定の通知を受けた補助事業について、変更等したいので、岡山市合併処理"]
[]
["浄化槽設置整備事業補助金交付要綱第８条第１項の規定により、下記のとおり申請します。"]
[]
[]
[null,"記"]
[]
[null,1,"変更等の内容"]
[]
[null,null,"（１）補助金申請内容の変更"]
[null,null,"　ア　変更する内容"]
[null,null,"　イ　変更前"]
[null,null,"　ウ　変更後"]
[null,null,"（２）補助事業の中止"]
[]
[null,null,"（３）補助事業の廃止"]
[]
[null,2,"理由"]

{"sheet":"移管データ","index":14,"n_rows":2,"n_cols":75,"rows_kept":2,"cut":false,"hidden":false,"merged":[]}
["交付番号","年度","受付月","名前","名前(外字使わない)","読み","町名","山上対策地域","人槽","但書適用前人槽","既設","実使用人員","型式","メ－カ－","申請者住所","住所２","新要綱該当事由","新要綱確認書類","〒′","地番","下水計画区域","申請手続","業者No.","工事業者","設備士","物件","確認届出区分","完成予定日","届出日","施工協受付NO","申請仮受付","申請受付","設置補助額","配管補助額","補助額","支出残","設置分国庫額","配管補助","条件","起案日","交付決定日","実績報告","保証登録番号","額確定起案日","額確定","会計送達日","審査日","振込日","備考","番号","設置場所","NO（設置場所一致）","場所（設置場所一致）","名前（設置場所一致）","NO（名前一致）","場所（名前一致）","名前（名前一致）","変更承認受付日","変更承認起案日","変更承認決裁日","理由","ﾌﾞﾛﾜｰ型式","振込先連絡有無","振込金融機関名","口座番号","振込先備考","国補区分","総事業費","本体価格","埋設工事費","面積１","面積２","面積２の用途","提出予定日","台所升の油脂"]
[null,null,null,{"$f":"DBCS(入力!C9)","v":""},{"$f":"DBCS(入力!C9)","v":""},{"$f":"DBCS(PHONETIC(入力!C8))","v":""},{"$f":"DBCS(入力!C30)","v":""},{"$f":"IF(COUNTIF(【編集不可】マスタ!H2:H9,入力!C30),\"山上\",\"　\")","v":"　"},{"$f":"ASC(入力!C49)","v":""},{"$f":"ASC(IF(入力!C48=入力!C49,\"不適用\",入力!C48))","v":"不適用"},null,{"$f":"ASC(入力!C42)","v":""},{"$f":"ASC(入力!C47)","v":""},{"$f":"ASC(入力!C46)","v":""},{"$f":"IFERROR((IF(FIND(\"　\",DBCS(入力!C7),1)>0, DBCS(LEFT(入力!C7,FIND(\"　\",入力!C7,1)-1)),入力!C7)),\"\")","v":""},{"$f":"ASC(RIGHT(入力!C7,LEN(入力!C7)-FIND(\"　\",入力!C7,1)))","v":{"$error":"#VALUE!"}},{"$f":"IF(入力!C17=0,入力!C15,入力!C15&\"，\"&入力!C17)","v":0},null,{"$f":"ASC(入力!C6)","v":""},{"$f":"DBCS(入力!K34)","v":""},null,{"$f":"ASC(SUBSTITUTE(SUBSTITUTE(入力!C66,\"有限会社\",\"(有)\"),\"株式会社\",\"(株)\"))","v":""},{"$f":"IF(入力!C74=\"登録\",\"T\",\"\")&IF(入力!C74=\"届出\",\"K\",\"\")&ASC(入力!H74)","v":""},{"$f":"ASC(SUBSTITUTE(SUBSTITUTE(入力!C72,\"有限会社\",\"(有)\"),\"株式会社\",\"(株)\"))","v":""},{"$f":"IFERROR((IF(FIND(\"　\",DBCS(入力!C75),1)>0, DBCS(LEFT(入力!C75,FIND(\"　\",入力!C75,1)-1)),入力!C75)),\"\")","v":""},null,{"$f":"IF(入力!C11=\"建築確認\",\"確認\",\"\")&IF(入力!C11=\"設置届出\",\"届出\",\"\")","v":""},{"$f":"ASC(\"R\"&(IF(入力!C61<4,入力!C2+1,入力!C2)&\"/\"&入力!C61&\"/\"&入力!E61))","v":"R8//"},null,null,null,null,{"$f":"IFERROR('見積額調書(提出不要・削除禁止)'!AM10,\"\")","v":0},{"$f":"IFERROR('見積額調書(提出不要・削除禁止)'!AM14,\"\")","v":0},{"$f":"IFERROR(交付申請書!X41/1000,\"\")","v":0},null,null,{"$f":"IF(AH2=0,\"\",\"配管補助あり\")","v":""},null,null,null,{"$f":"IF(入力!G3=0,\"\",入力!G3)","v":""},null,null,null,null,null,null,null,null,{"$f":"DBCS(G2&T2)","v":""},null,null,null,null,null,null,null,null,null,null,{"$f":"ASC(入力!G54)","v":""},null,null,null,null,null,{"$f":"IF(入力!G55=0,入力!C55,入力!G55)","v":0},{"$f":"入力!G56","v":0},{"$f":"入力!G57","v":0},{"$f":"入力!C38","v":0},{"$f":"IF(入力!C39=0,\"\",入力!C39)","v":""},{"$f":"IF(入力!F36=0,\"\",入力!F36)","v":""}]

{"sheet":"見積額調書(提出不要・削除禁止)","index":15,"n_rows":54,"n_cols":50,"rows_kept":54,"cut":false,"hidden":false,"merged":[[9,35,10,37],[0,0,1,9],[3,14,4,36],[7,13,7,23],[7,26,7,36],[9,25,10,34],[7,39,7,50],[9,38,10,48],[9,49,10,51],[12,0,12,11],[12,16,12,20],[12,29,12,33],[12,43,12,46],[11,13,11,23],[11,26,11,36],[11,39,11,50],[8,1,9,10],[8,16,8,20],[8,29,8,33],[8,43,8,46],[9,12,10,21],[9,22,10,24],[13,1,13,10],[13,12,14,21],[13,22,14,24],[13,25,14,34],[13,35,14,37],[13,38,14,48],[13,49,14,51],[15,13,15,23],[15,26,15,36],[15,39,15,50],[16,0,16,11],[16,16,16,20],[16,29,16,33],[16,43,16,46],[25,4,25,18],[17,1,17,10],[17,12,18,21],[17,22,18,24],[17,25,18,34],[17,49,18,51],[21,4,21,12],[21,30,21,33],[23,4,23,12],[23,25,23,38],[17,35,18,37],[17,38,18,48],[27,7,27,24],[27,33,27,45],[27,46,27,47],[29,7,29,17],[29,33,29,45],[29,46,29,47],[31,7,31,19],[31,33,31,45],[31,46,31,47],[33,7,33,19],[33,33,33,45],[33,46,33,47],[35,7,35,14],[35,33,35,45],[35,46,35,47],[38,21,38,26],[38,33,38,45],[38,46,38,47]]}
["（第６条関係）"]
[]
[]
[null,null,null,null,null,null,null,null,null,null,null,null,null,null,"補助金見積額調書"]
[]
[]
[]
[null,null,null,null,null,null,null,null,null,null,null,null,null,"事業費見積額",null,null,null,null,null,null,null,null,null,null,null,null,"補助限度額",null,null,null,null,null,null,null,null,null,null,null,null,"補助金申請額"]
[null,"浄化槽設置分",null,null,null,null,null,null,null,null,null,null,null,null,null,null,"（Ａ）",null,null,null,null,null,null,null,null,null,null,null,null,"（Ｂ）",null,null,null,null,null,null,null,null,null,null,null,null,null,"（Ｃ）"]
[null,null,null,null,null,null,null,null,null,null,null,null,{"$f":"ROUNDDOWN((AH28+AH30)/1000,0)","v":0},null,null,null,null,null,null,null,null,null,"千円",null,null,{"$f":"IF(入力!C49=0,0,ROUNDDOWN((VLOOKUP(入力!C49,【編集不可】マスタ!I2:J44,2,FALSE))/1000,0))","v":0},null,null,null,null,null,null,null,null,null,"千円",null,null,{"$f":"MIN(M10,Z10)","v":0},null,null,null,null,null,null,null,null,null,null,"千円"]
[]
[null,null,null,null,null,null,null,null,null,null,null,null,null,"事業費見積額",null,null,null,null,null,null,null,null,null,null,null,null,"補助限度額",null,null,null,null,null,null,null,null,null,null,null,null,"補助金申請額"]
["単独・汲取り転換",null,null,null,null,null,null,null,null,null,null,null,null,null,null,null,"（Ｄ）",null,null,null,null,null,null,null,null,null,null,null,null,"（Ｅ）",null,null,null,null,null,null,null,null,null,null,null,null,null,"（Ｆ）"]
[null,"宅内配管工事分",null,null,null,null,null,null,null,null,null,null,{"$f":"IF(入力!C15=\"設置分と宅内配管補助【単独転換】\",ROUNDDOWN(AH32/1000,0),0)+IF(入力!C15=\"設置分と宅内配管補助【汲取り転換】\",ROUNDDOWN(AH32/1000,0),0)+IF(入力!C15=\"設置分と宅内配管補助と便槽撤去補助\",ROUNDDOWN(AH32/1000,0),0)","v":0},null,null,null,null,null,null,null,null,null,"千円",null,null,{"$f":"交付申請書!AW43/1000","v":300},null,null,null,null,null,null,null,null,null,"千円",null,null,{"$f":"MIN(M14,Z14)","v":0},null,null,null,null,null,null,null,null,null,null,"千円"]
[]
[null,null,null,null,null,null,null,null,null,null,null,null,null,"事業費見積額",null,null,null,null,null,null,null,null,null,null,null,null,"補助限度額",null,null,null,null,null,null,null,null,null,null,null,null,"補助金申請額"]
["汲取り転換",null,null,null,null,null,null,null,null,null,null,null,null,null,null,null,"（Ｇ）",null,null,null,null,null,null,null,null,null,null,null,null,"（Ｈ）",null,null,null,null,null,null,null,null,null,null,null,null,null,"（Ｉ）"]
[null,"便槽撤去工事分",null,null,null,null,null,null,null,null,null,null,{"$f":"IF(入力!C15=\"設置分と宅内配管補助と便槽撤去補助\",ROUNDDOWN(AH34/1000,0),0)+IF(入力!C15=\"設置分と便槽撤去補助\",ROUNDDOWN(AH34/1000,0),0)","v":0},null,null,null,null,null,null,null,null,null,"千円",null,null,{"$f":"交付申請書!AW44/1000","v":90},null,null,null,null,null,null,null,null,null,"千円",null,null,{"$f":"MIN(M18,Z18)","v":0},null,null,null,null,null,null,null,null,null,null,"千円"]
[]
[]
[]
[null,null,null,null,"１　人槽規模",null,null,null,null,null,null,null,null,null,null,null,null,null,null,null,null,null,null,null,null,null,null,null,null,"（",{"$f":"入力!C49","v":0},null,null,null,"）人槽"]
[]
[null,null,null,null,"２　設置機種",null,null,null,null,null,null,null,null,null,null,null,null,null,null,null,null,null,null,null,null,{"$f":"ASC(IF(入力!C47=0,\"\",入力!C47))","v":""}]
[]
[null,null,null,null,"３　事業費見積額内訳"]
[]
[null,null,null,null,null,null,null,"(1) 合併処理浄化槽本体価格",null,null,null,null,null,null,null,null,null,null,null,null,null,null,null,null,null,null,null,null,null,null,null,null,null,{"$f":"入力!C56","v":0},null,null,null,null,null,null,null,null,null,null,null,null,"円"]
[]
[null,null,null,null,null,null,null,"(2) 埋設工事費",null,null,null,null,null,null,null,null,null,null,null,null,null,null,null,null,null,null,null,null,null,null,null,null,null,{"$f":"入力!C57","v":0},null,null,null,null,null,null,null,null,null,null,null,null,"円"]
[]
[null,null,null,null,null,null,null,"(3) 配管工事費",null,null,null,null,null,null,null,null,null,null,null,null,null,null,null,null,null,null,null,null,null,null,null,null,null,{"$f":"入力!C58","v":0},null,null,null,null,null,null,null,null,null,null,null,null,"円"]
[]
[null,null,null,null,null,null,null,"(4) 撤去工事費",null,null,null,null,null,null,null,null,null,null,null,null,null,null,null,null,null,null,null,null,null,null,null,null,null,{"$f":"入力!C59","v":0},null,null,null,null,null,null,null,null,null,null,null,null,"円"]
[]
[null,null,null,null,null,null,null,"(5) 消費税",null,null,null,null,null,null,null,null,null,null,null,null,null,null,null,null,null,null,null,null,null,null,null,null,null,{"$f":"入力!C60","v":0},null,null,null,null,null,null,null,null,null,null,null,null,"円"]
[]
[]
[null,null,null,null,null,null,null,null,null,null,null,null,null,null,null,null,null,null,null,null,null,"合　計",null,null,null,null,null,null,null,null,null,null,null,{"$f":"AH28+AH30+AH32+AH34+AH36","v":0},null,null,null,null,null,null,null,null,null,null,null,null,"円"]
[]
[]
[]
[null,"備考"]
[null,null,"※補助金申請額について"]
[null,null,null,"(C)欄には、(A)と(B)を比較していずれか少ない方の額を記入してください。"]
[null,null,null,"(F)欄には、(D)と(E)を比較していずれか少ない方の額を記入してください。"]
[null,null,null,"(I)欄には、(G)と(H)を比較していずれか少ない方の額を記入してください。"]
[null,null,"※事業費見積額について"]
[null,null,null,"浄化槽設置工事分(※配管工事費を含まない)を(A)欄に記入してください。"]
[null,null,null,"単独転換又は汲取り転換に伴う宅内配管工事補助を申請する場合は(D)の欄にも記入"]
[null,null,null,"してください。"]
[null,null,null,"汲取り便槽撤去に伴う撤去工事補助を申請する場合は(G)の欄にも記入してください。"]
[null,null,null,"(A),(D),(G) には消費税及び地方消費税の額を含まずに，１，０００円未満は切捨てた"]
[null,null,null,"額を記入してください。"]

{"sheet":"収支決算及び実績額(提出不要・削除禁止)","index":16,"n_rows":25,"n_cols":50,"rows_kept":25,"cut":false,"hidden":false,"merged":[[1,1,2,10],[1,16,1,20],[1,29,1,33],[1,43,1,46],[2,12,3,21],[4,13,4,23],[4,26,4,36],[4,39,4,50],[0,13,0,23],[0,26,0,36],[0,39,0,50],[2,22,3,24],[2,25,3,34],[2,35,3,37],[2,38,3,48],[2,49,3,51],[5,0,5,11],[5,16,5,20],[5,29,5,33],[5,43,5,46],[6,1,6,10],[6,12,7,21],[6,22,7,24],[6,25,7,34],[6,35,7,37],[6,38,7,48],[6,49,7,51],[8,13,8,23],[8,26,8,36],[8,39,8,50],[9,0,9,11],[9,16,9,20],[9,29,9,33],[9,43,9,46],[10,49,11,51],[10,1,10,10],[10,12,11,21],[10,22,11,24],[10,25,11,34],[10,35,11,37],[10,38,11,48],[13,7,13,24],[13,33,13,45],[13,46,13,47],[15,7,15,17],[15,33,15,45],[15,46,15,47],[17,7,17,19],[17,33,17,45],[17,46,17,47],[19,7,19,19],[19,33,19,45],[19,46,19,47],[21,7,21,14],[21,33,21,45],[21,46,21,47],[24,21,24,26],[24,33,24,45],[24,46,24,47]]}
[null,null,null,null,null,null,null,null,null,null,null,null,null,"事業費",null,null,null,null,null,null,null,null,null,null,null,null,"補助限度額",null,null,null,null,null,null,null,null,null,null,null,null,"補助金申請額"]
[null,"浄化槽設置分",null,null,null,null,null,null,null,null,null,null,null,null,null,null,"（Ａ）",null,null,null,null,null,null,null,null,null,null,null,null,"（Ｂ）",null,null,null,null,null,null,null,null,null,null,null,null,null,"（Ｃ）"]
[null,null,null,null,null,null,null,null,null,null,null,null,{"$f":"ROUNDDOWN((AH14+AH16)/1000,0)","v":0},null,null,null,null,null,null,null,null,null,"千円",null,null,{"$f":"IF(入力!C49=0,0,ROUNDDOWN((VLOOKUP(入力!C49,【編集不可】マスタ!I2:J44,2,FALSE))/1000,0))","v":0},null,null,null,null,null,null,null,null,null,"千円",null,null,{"$f":"MIN(M3,Z3)","v":0},null,null,null,null,null,null,null,null,null,null,"千円"]
[]
[null,null,null,null,null,null,null,null,null,null,null,null,null,"事業費",null,null,null,null,null,null,null,null,null,null,null,null,"補助限度額",null,null,null,null,null,null,null,null,null,null,null,null,"補助金申請額"]
["単独・汲取り転換",null,null,null,null,null,null,null,null,null,null,null,null,null,null,null,"（Ｄ）",null,null,null,null,null,null,null,null,null,null,null,null,"（Ｅ）",null,null,null,null,null,null,null,null,null,null,null,null,null,"（Ｆ）"]
[null,"宅内配管工事分",null,null,null,null,null,null,null,null,null,null,{"$f":"IF(入力!C15=\"設置分と宅内配管補助【単独転換】\",ROUNDDOWN(AH18/1000,0),0)+IF(入力!C15=\"設置分と宅内配管補助【汲取り転換】\",ROUNDDOWN(AH18/1000,0),0)+IF(入力!C15=\"設置分と宅内配管補助と便槽撤去補助\",ROUNDDOWN(AH18/1000,0),0)","v":0},null,null,null,null,null,null,null,null,null,"千円",null,null,{"$f":"交付申請書!AW43/1000","v":300},null,null,null,null,null,null,null,null,null,"千円",null,null,{"$f":"MIN(M7,Z7)","v":0},null,null,null,null,null,null,null,null,null,null,"千円"]
[]
[null,null,null,null,null,null,null,null,null,null,null,null,null,"事業費",null,null,null,null,null,null,null,null,null,null,null,null,"補助限度額",null,null,null,null,null,null,null,null,null,null,null,null,"補助金申請額"]
["汲取り転換",null,null,null,null,null,null,null,null,null,null,null,null,null,null,null,"（Ｇ）",null,null,null,null,null,null,null,null,null,null,null,null,"（Ｈ）",null,null,null,null,null,null,null,null,null,null,null,null,null,"（Ｉ）"]
[null,"便槽撤去工事分",null,null,null,null,null,null,null,null,null,null,{"$f":"IF(入力!C15=\"設置分と宅内配管補助と便槽撤去補助\",ROUNDDOWN(AH20/1000,0),0)+IF(入力!C15=\"設置分と便槽撤去補助\",ROUNDDOWN(AH20/1000,0),0)","v":0},null,null,null,null,null,null,null,null,null,"千円",null,null,{"$f":"交付申請書!AW44/1000","v":90},null,null,null,null,null,null,null,null,null,"千円",null,null,{"$f":"MIN(M11,Z11)","v":0},null,null,null,null,null,null,null,null,null,null,"千円"]
[]
[]
[null,null,null,null,null,null,null,"(1) 合併処理浄化槽本体価格",null,null,null,null,null,null,null,null,null,null,null,null,null,null,null,null,null,null,null,null,null,null,null,null,null,{"$f":"入力!G56","v":0},null,null,null,null,null,null,null,null,null,null,null,null,"円"]
[]
[null,null,null,null,null,null,null,"(2) 埋設工事費",null,null,null,null,null,null,null,null,null,null,null,null,null,null,null,null,null,null,null,null,null,null,null,null,null,{"$f":"入力!G57","v":0},null,null,null,null,null,null,null,null,null,null,null,null,"円"]
[]
[null,null,null,null,null,null,null,"(3) 配管工事費",null,null,null,null,null,null,null,null,null,null,null,null,null,null,null,null,null,null,null,null,null,null,null,null,null,{"$f":"入力!G58","v":0},null,null,null,null,null,null,null,null,null,null,null,null,"円"]
[]
[null,null,null,null,null,null,null,"(4) 撤去工事費",null,null,null,null,null,null,null,null,null,null,null,null,null,null,null,null,null,null,null,null,null,null,null,null,null,{"$f":"入力!G59","v":0},null,null,null,null,null,null,null,null,null,null,null,null,"円"]
[]
[null,null,null,null,null,null,null,"(5) 消費税",null,null,null,null,null,null,null,null,null,null,null,null,null,null,null,null,null,null,null,null,null,null,null,null,null,{"$f":"入力!G60","v":0},null,null,null,null,null,null,null,null,null,null,null,null,"円"]
[]
[]
[null,null,null,null,null,null,null,null,null,null,null,null,null,null,null,null,null,null,null,null,null,"合　計",null,null,null,null,null,null,null,null,null,null,null,{"$f":"AH14+AH16+AH18+AH20+AH22","v":0},null,null,null,null,null,null,null,null,null,null,null,null,"円"]

{"sheet":"【編集不可】マスタ","index":17,"n_rows":822,"n_cols":21,"rows_kept":822,"cut":false,"hidden":false,"merged":[]}
["No","日にち（月）","日にち（日）","北区地名","中区地名","東区地名","南区地名","山上対策地域","人槽","補助金額(通常)","変更届","委任状","理由書","承諾書","公共物使用許可書","種類","放流先","所有者","消費税","消費税計算（申請）","消費税計算（実績）"]
[1,4,1,"【あ】","【あ】","【あ】","【あ】","日近",5,332000,"配管経路","共有者あり","算定より大きい槽を埋設のため（住民票添付）","他者所有の敷地に浄化槽を埋設する","開発許可なく水路等に排管を新設","一般住宅","側溝","本人","消費税（10％）端数：切上げ",{"$f":"ROUNDUP(+SUM(入力!C56:F59)*10%,0)","v":0},{"$f":"ROUNDUP(+SUM(入力!G56:J59)*10%,0)","v":0}]
[2,5,2,"葵町","赤坂台","浅川","青江六丁目","杉谷",7,414000,"埋設位置",null,"算定より大きい槽を埋設のため（増築予定図面添付）","他者所有の敷地を排水管が経由する",null,"併用住宅","用水路","共有（2人）","消費税（10％）端数：切捨て",{"$f":"ROUNDDOWN(+SUM(入力!C56:F59)*10%,0)","v":0},{"$f":"ROUNDDOWN(+SUM(入力!G56:J59)*10%,0)","v":0}]
[3,6,3,"青江一丁目","赤坂本町","浅越","飽浦","下高田",10,548000,"埋設方向",null,"【その他自由入力】","他者所有の排水路などを使用する",null,null,"排水路","共有（3人）","消費税（10％）端数：四捨五入",{"$f":"ROUND(+SUM(入力!C56:F59)*10%,0)","v":0},{"$f":"ROUND(+SUM(入力!G56:J59)*10%,0)","v":0}]
[4,7,4,"青江二丁目","赤坂南新町","【い】","あけぼの町","吉",11,939000,"埋設位置および埋設方向",null,null,"所有権移転前の申請および設置",null,null,"河川","共有（4人）"]
[5,8,5,"青江三丁目","赤田","犬島","阿津","山上",12,939000,"住所",null,null,"【その他自由入力】",null,null,"その他","他者"]
[6,9,6,"青江四丁目","網浜","【う】","【い】","上高田",13,939000,"設備士"]
[7,10,7,"青江五丁目","【い】","内ケ原","泉田","石妻",14,939000,"設備士（途中変更）"]
[8,11,8,"旭本町","今在家","浦間","泉田一丁目",null,15,939000,"放流方法"]
[9,12,9,"旭町","今谷","【お】","泉田二丁目",null,16,939000,"間取り"]
[10,1,10,"足守","【え】","大多羅町","泉田三丁目",null,17,939000]
[11,2,11,"天瀬","江崎","邑久郷","泉田四丁目",null,18,939000]
[12,3,12,"天瀬南町","江並","乙子","泉田五丁目",null,19,939000]
[13,null,13,"粟井","【お】","【か】","【う】",null,20,939000]
[14,null,14,"【い】","沖元","可知一丁目","植松　",null,21,1472000]
[15,null,15,"石関町","奥市","可知二丁目","内尾",null,22,1472000]
[16,null,16,"石妻","乙多見","可知三丁目","浦安西町",null,23,1472000]
[17,null,17,"伊島北町","御成町","可知四丁目","浦安本町",null,24,1472000]
[18,null,18,"伊島町一丁目","雄町","可知五丁目","浦安南町",null,25,1472000]
[19,null,19,"伊島町二丁目","【か】","金岡西町","【お】",null,26,1472000]
[20,null,20,"伊島町三丁目","門田文化町一丁目","金岡東町一丁目","大福",null,27,1472000]
[21,null,21,"出石町一丁目","門田文化町二丁目","金岡東町二丁目","奥迫川",null,28,1472000]
[22,null,22,"出石町二丁目","門田文化町三丁目","金岡東町三丁目","【か】",null,29,1472000]
[23,null,23,"いずみ町","門田本町一丁目","金田","海岸通一丁目",null,30,1472000]
[24,null,24,"一宮","門田本町二丁目","上阿知","海岸通二丁目",null,31,2037000]
[25,null,25,"一宮山崎","門田本町三丁目","神崎町","片岡",null,32,2037000]
[26,null,26,"伊福町一丁目","門田本町四丁目","【き】","川張",null,33,2037000]
[27,null,27,"伊福町二丁目","門田屋敷一丁目","北幸田","【き】",null,34,2037000]
[28,null,28,"伊福町三丁目","門田屋敷二丁目","君津","北浦",null,35,2037000]
[29,null,29,"伊福町四丁目","門田屋敷三丁目","【く】","北七区",null,36,2037000]
[30,null,30,"今一丁目","門田屋敷四丁目","久々井","【こ】",null,37,2037000]
[31,null,31,"今二丁目","門田屋敷五丁目","草ケ部","郡",null,38,2037000]
[32,null,null,"今三丁目","門田屋敷本町","九蟠","小串",null,39,2037000]
[33,null,null,"今四丁目","兼基","久保","古新田",null,40,2037000]
[34,null,null,"今五丁目","【き】","鉄","【し】",null,41,2037000]
[35,null,null,"今六丁目","祇園","【こ】","市場一丁目",null,42,2037000]
[36,null,null,"今七丁目","旭東町一丁目","幸地崎町","市場二丁目",null,43,2037000]
[37,null,null,"今八丁目","旭東町二丁目","光津","下中野",null,44,2037000]
[38,null,null,"今岡","旭東町三丁目","河本町","新福一丁目",null,45,2037000]
[39,null,null,"今保","【く】","古都宿","新福二丁目",null,46,2037000]
[40,null,null,"今村","国富","古都南方","新保",null,47,2037000]
[41,null,null,"岩井一丁目","国富一丁目","【さ】","【す】",null,48,2037000]
[42,null,null,"岩井二丁目","国富二丁目","才崎","洲崎一丁目",null,49,2037000]
[43,null,null,"岩井宮裏","国富三丁目","西大寺","洲崎二丁目",null,50,2037000]
[44,null,null,"岩田町","国富四丁目","西大寺射越","洲崎三丁目"]
[45,null,null,"【う】","倉田","西大寺一宮","【せ】"]
[46,null,null,"内山下一丁目","倉富","西大寺金岡","妹尾"]
[47,null,null,"内山下二丁目","倉益","西大寺上一丁目","妹尾崎"]
[48,null,null,"【え】","桑野","西大寺上二丁目","【そ】"]
[49,null,null,"駅前町一丁目","【こ】","西大寺上三丁目","宗津"]
[50,null,null,"駅前町二丁目","神下","西大寺川口","曽根"]
[51,null,null,"駅元町","国府市場","西大寺北","【た】"]
[52,null,null,"絵図町","小橋町一丁目","西大寺五明","立川町"]
[53,null,null,"【お】","小橋町二丁目","西大寺新","【ち】"]
[54,null,null,"大井","【さ】","西大寺新地","築港栄町"]
[55,null,null,"大内田","穝","西大寺中一丁目","築港新町一丁目"]
[56,null,null,"大窪","穝東町一丁目","西大寺中二丁目","築港新町二丁目"]
[57,null,null,"大崎","穝東町二丁目","西大寺中三丁目","築港ひかり町"]
[58,null,null,"大元一丁目","さくら住座","西大寺中野","築港緑町一丁目"]
[59,null,null,"大元二丁目","桜橋一丁目","西大寺中野本町","築港緑町二丁目"]
[60,null,null,"大元駅前","桜橋二丁目","西大寺浜","築港緑町三丁目"]
[61,null,null,"大元上町","桜橋三丁目","西大寺東一丁目","築港元町"]
[62,null,null,"岡町","桜橋四丁目","西大寺東二丁目","千鳥町"]
[63,null,null,"奥田一丁目","沢田","西大寺東三丁目","【と】"]
[64,null,null,"奥田二丁目","【し】","西大寺松崎","当新田"]
[65,null,null,"奥田西町","四御神","西大寺南一丁目","富浜町"]
[66,null,null,"奥田本町","清水","西大寺南二丁目","豊成一丁目"]
[67,null,null,"奥田南町","清水一丁目","西大寺門前","豊成二丁目"]
[68,null,null,"尾上","清水二丁目","西隆寺","豊成三丁目"]
[69,null,null,"御舟入町","下","【し】","豊浜町"]
[70,null,null,"表町一丁目","賞田","宍甘","【な】"]
[71,null,null,"表町二丁目","新京橋一丁目","下阿知","中畦"]
[72,null,null,"表町三丁目","新京橋二丁目","宿毛","並木町一丁目"]
[73,null,null,"【か】","新京橋三丁目","上道北方","並木町二丁目"]
[74,null,null,"栢谷","新築港","城東台西一丁目","南輝一丁目"]
[75,null,null,"学南町一丁目","【す】","城東台西二丁目","南輝二丁目"]
[76,null,null,"学南町二丁目","住吉町一丁目","城東台西三丁目","南輝三丁目"]
[77,null,null,"学南町三丁目","住吉町二丁目","城東台東一丁目","【に】"]
[78,null,null,"掛畑","【せ】","城東台東二丁目","西市　"]
[79,null,null,"春日町","関","城東台南一丁目","西畦"]
[80,null,null,"金山寺","【た】","城東台南二丁目","西紅陽台一丁目"]
[81,null,null,"上高田","高島一丁目","【す】","西紅陽台二丁目"]
[82,null,null,"上土田","高島二丁目","水門町","西紅陽台三丁目"]
[83,null,null,"上中野一丁目","高島新屋敷","砂場","西高崎"]
[84,null,null,"上中野二丁目","高屋","【せ】","西七区"]
[85,null,null,"加茂","竹田","西祖","【は】"]
[86,null,null,"辛川市場","【ち】","瀬戸町旭ヶ丘一丁目","迫川"]
[87,null,null,"川入","中納言町","瀬戸町旭ヶ丘二丁目","浜野一丁目"]
[88,null,null,"河原","【つ】","瀬戸町旭ヶ丘三丁目","浜野二丁目"]
[89,null,null,"関西町","土田","瀬戸町旭ヶ丘四丁目","浜野三丁目"]
[90,null,null,"神田町一丁目","【と】","瀬戸町江尻","浜野四丁目"]
[91,null,null,"神田町二丁目","徳吉町一丁目","瀬戸町大内","【ひ】"]
[92,null,null,"【き】","徳吉町二丁目","瀬戸町沖","東畦"]
[93,null,null,"祇園","【な】","瀬戸町鍛冶屋","彦崎"]
[94,null,null,"北方一丁目","中井","瀬戸町肩脊","平福一丁目"]
[95,null,null,"北方二丁目","中井一丁目","瀬戸町観音寺","平福二丁目"]
[96,null,null,"北方三丁目","中井二丁目","瀬戸町菊山","【ふ】"]
[97,null,null,"北方四丁目","中井三丁目","瀬戸町光明谷","福島一丁目"]
[98,null,null,"北長瀬","中井四丁目","瀬戸町坂根","福島二丁目"]
[99,null,null,"北長瀬表町一丁目","長岡","瀬戸町笹岡","福島三丁目"]
[100,null,null,"北長瀬表町二丁目","中島","瀬戸町塩納","福島四丁目"]
[101,null,null,"北長瀬表町三丁目","長利","瀬戸町下","福田"]
[102,null,null,"北長瀬本町","【に】","瀬戸町宿奥","福富中一丁目"]
[103,null,null,"吉備津","西川原","瀬戸町瀬戸","福富中二丁目"]
[104,null,null,"京橋町","西川原一丁目","瀬戸町宗堂","福富西一丁目"]
[105,null,null,"京橋南町","西中島町","瀬戸町大井","福富西二丁目"]
[106,null,null,"京町","【は】","瀬戸町寺地","福富西三丁目"]
[107,null,null,"京山一丁目","浜","瀬戸町二日市","福富東一丁目"]
[108,null,null,"京山二丁目","浜一丁目","瀬戸町万富","福富東二丁目"]
[109,null,null,"【く】","浜二丁目","瀬戸町南方","福成一丁目"]
[110,null,null,"久米","浜三丁目","瀬戸町森末","福成二丁目"]
[111,null,null,"桑田町","原尾島","瀬戸町弓削","福成三丁目"]
[112,null,null,"【こ】","原尾島一丁目","千手","福浜町"]
[113,null,null,"厚生町一丁目","原尾島二丁目","【た】","福浜西町"]
[114,null,null,"厚生町二丁目","原尾島三丁目","竹原","福吉町"]
[115,null,null,"厚生町三丁目","原尾島四丁目","谷尻","藤田"]
[116,null,null,"岡南町一丁目","【ひ】","【て】","【ほ】"]
[117,null,null,"岡南町二丁目","東川原","寺山","芳泉一丁目"]
[118,null,null,"首部","東中島町","【と】","芳泉二丁目"]
[119,null,null,"高野尻","東山一丁目","富崎","芳泉三丁目"]
[120,null,null,"後楽園","東山二丁目","豊田","芳泉四丁目"]
[121,null,null,"国体町","東山三丁目","【な】","【ま】"]
[122,null,null,"苔山","東山四丁目","中尾","松浜町"]
[123,null,null,"寿町","平井","中川町","万倍"]
[124,null,null,"小山","平井一丁目","長沼","【み】"]
[125,null,null,"【さ】","平井二丁目","楢原","箕島"]
[126,null,null,"幸町","平井三丁目","【に】","三浜町一丁目"]
[127,null,null,"佐山","平井四丁目","西片岡","三浜町二丁目"]
[128,null,null,"【し】","平井五丁目","西幸西","宮浦"]
[129,null,null,"鹿田町一丁目","平井六丁目","西庄","【や】"]
[130,null,null,"鹿田町二丁目","平井七丁目","西平島","山田"]
[131,null,null,"鹿田本町","【ふ】","【ぬ】","【よ】"]
[132,null,null,"島田本町一丁目","福泊","沼","米倉"]
[133,null,null,"島田本町二丁目","藤崎","【ひ】","【わ】"]
[134,null,null,"下足守","藤原","東片岡","若葉町"]
[135,null,null,"下石井一丁目","藤原西町一丁目","東幸西"]
[136,null,null,"下石井二丁目","藤原西町二丁目","東幸崎"]
[137,null,null,"下伊福一丁目","藤原光町一丁目","東平島"]
[138,null,null,"下伊福二丁目","藤原光町二丁目","一日市"]
[139,null,null,"下伊福上町","藤原光町三丁目","広谷"]
[140,null,null,"下伊福西町","古京町一丁目","【ふ】"]
[141,null,null,"下伊福本町","古京町二丁目","福治"]
[142,null,null,"下内田町","【ま】","藤井"]
[143,null,null,"下高田","円山","富士見町一丁目"]
[144,null,null,"下土田","【み】","【ほ】"]
[145,null,null,"下中野","湊","宝伝"]
[146,null,null,"下牧","御幸町","【ま】"]
[147,null,null,"宿","海吉","正儀"]
[148,null,null,"宿本町","【も】","政津"]
[149,null,null,"庄田","森下町","升田"]
[150,null,null,"昭和町","【や】","益野町"]
[151,null,null,"白石","八幡","松新町"]
[152,null,null,"白石西新町","八幡東町","【み】"]
[153,null,null,"白石東新町","山崎","南古都"]
[154,null,null,"新庄上","【ゆ】","南水門町"]
[155,null,null,"新庄下","湯迫","【む】"]
[156,null,null,"新道","【よ】","向州"]
[157,null,null,"新屋敷町一丁目","米田","【め】"]
[158,null,null,"新屋敷町二丁目",null,"目黒町"]
[159,null,null,"新屋敷町三丁目",null,"【も】"]
[160,null,null,"【す】",null,"百枝月"]
[161,null,null,"菅野",null,"【や】"]
[162,null,null,"杉谷",null,"矢井"]
[163,null,null,"【せ】",null,"矢津"]
[164,null,null,"清輝橋一丁目",null,"【よ】"]
[165,null,null,"清輝橋二丁目",null,"吉井"]
[166,null,null,"清輝橋三丁目",null,"吉原"]
[167,null,null,"清輝橋四丁目"]
[168,null,null,"清輝本町"]
[169,null,null,"清心町"]
[170,null,null,"船頭町"]
[171,null,null,"【そ】"]
[172,null,null,"惣爪"]
[173,null,null,"【た】"]
[174,null,null,"大安寺中町"]
[175,null,null,"大安寺西町"]
[176,null,null,"大安寺東町"]
[177,null,null,"大安寺南町一丁目"]
[178,null,null,"大安寺南町二丁目"]
[179,null,null,"大学町"]
[180,null,null,"大供一丁目"]
[181,null,null,"大供二丁目"]
[182,null,null,"大供三丁目"]
[183,null,null,"大供表町"]
[184,null,null,"大供本町"]
[185,null,null,"高塚"]
[186,null,null,"高野"]
[187,null,null,"高松"]
[188,null,null,"高松稲荷"]
[189,null,null,"高松田中"]
[190,null,null,"高松原古才"]
[191,null,null,"高柳西町"]
[192,null,null,"高柳東町"]
[193,null,null,"建部町市場"]
[194,null,null,"建部町大田"]
[195,null,null,"建部町小倉"]
[196,null,null,"建部町川口"]
[197,null,null,"建部町桜"]
[198,null,null,"建部町三明寺"]
[199,null,null,"建部町品田"]
[200,null,null,"建部町下神目"]
[201,null,null,"建部町建部上"]
[202,null,null,"建部町田地子"]
[203,null,null,"建部町鶴田"]
[204,null,null,"建部町角石畝"]
[205,null,null,"建部町角石谷"]
[206,null,null,"建部町富沢"]
[207,null,null,"建部町中田"]
[208,null,null,"建部町西原"]
[209,null,null,"建部町土師方"]
[210,null,null,"建部町福渡"]
[211,null,null,"建部町豊楽寺"]
[212,null,null,"建部町宮地"]
[213,null,null,"建部町吉田"]
[214,null,null,"建部町和田南"]
[215,null,null,"立田"]
[216,null,null,"辰巳"]
[217,null,null,"田中"]
[218,null,null,"谷万成一丁目"]
[219,null,null,"谷万成二丁目"]
[220,null,null,"田原"]
[221,null,null,"玉柏"]
[222,null,null,"田益"]
[223,null,null,"田町一丁目"]
[224,null,null,"田町二丁目"]
[225,null,null,"【ち】"]
[226,null,null,"中央町"]
[227,null,null,"【つ】"]
[228,null,null,"津倉町一丁目"]
[229,null,null,"津倉町二丁目"]
[230,null,null,"津島"]
[231,null,null,"津島京町一丁目"]
[232,null,null,"津島京町二丁目"]
[233,null,null,"津島京町三丁目"]
[234,null,null,"津島桑の木町"]
[235,null,null,"津島笹が瀬"]
[236,null,null,"津島中一丁目"]
[237,null,null,"津島中二丁目"]
[238,null,null,"津島中三丁目"]
[239,null,null,"津島新野一丁目"]
[240,null,null,"津島新野二丁目"]
[241,null,null,"津島西坂一丁目"]
[242,null,null,"津島西坂二丁目"]
[243,null,null,"津島西坂三丁目"]
[244,null,null,"津島東一丁目"]
[245,null,null,"津島東二丁目"]
[246,null,null,"津島東三丁目"]
[247,null,null,"津島東四丁目"]
[248,null,null,"津島福居一丁目"]
[249,null,null,"津島福居二丁目"]
[250,null,null,"津島本町"]
[251,null,null,"津島南一丁目"]
[252,null,null,"津島南二丁目"]
[253,null,null,"津高"]
[254,null,null,"津高台一丁目"]
[255,null,null,"津高台二丁目"]
[256,null,null,"津高台三丁目"]
[257,null,null,"津高台四丁目"]
[258,null,null,"津寺"]
[259,null,null,"【て】"]
[260,null,null,"天神町"]
[261,null,null,"【と】"]
[262,null,null,"問屋町"]
[263,null,null,"十日市中町"]
[264,null,null,"十日市西町"]
[265,null,null,"十日市東町"]
[266,null,null,"磨屋町"]
[267,null,null,"富田"]
[268,null,null,"富原"]
[269,null,null,"富町一丁目"]
[270,null,null,"富町二丁目"]
[271,null,null,"富吉"]
[272,null,null,"富田町一丁目"]
[273,null,null,"富田町二丁目"]
[274,null,null,"【な】"]
[275,null,null,"中井町一丁目"]
[276,null,null,"中井町二丁目"]
[277,null,null,"中山下一丁目"]
[278,null,null,"中山下二丁目"]
[279,null,null,"中島田町一丁目"]
[280,null,null,"中島田町二丁目"]
[281,null,null,"中仙道"]
[282,null,null,"中仙道一丁目"]
[283,null,null,"中仙道二丁目"]
[284,null,null,"中撫川"]
[285,null,null,"長野"]
[286,null,null,"中原"]
[287,null,null,"中牧"]
[288,null,null,"撫川"]
[289,null,null,"七日市西町"]
[290,null,null,"七日市東町"]
[291,null,null,"楢津"]
[292,null,null,"【に】"]
[293,null,null,"西市　"]
[294,null,null,"西辛川"]
[295,null,null,"錦町"]
[296,null,null,"西崎一丁目"]
[297,null,null,"西崎二丁目"]
[298,null,null,"西崎本町"]
[299,null,null,"西島田町"]
[300,null,null,"西長瀬"]
[301,null,null,"西之町"]
[302,null,null,"西野山町"]
[303,null,null,"西花尻"]
[304,null,null,"西古松"]
[305,null,null,"西古松一丁目"]
[306,null,null,"西古松二丁目"]
[307,null,null,"西古松西町"]
[308,null,null,"西山内"]
[309,null,null,"日応寺"]
[310,null,null,"庭瀬"]
[311,null,null,"【の】"]
[312,null,null,"納所"]
[313,null,null,"野田一丁目"]
[314,null,null,"野田二丁目"]
[315,null,null,"野田三丁目"]
[316,null,null,"野田四丁目"]
[317,null,null,"野田五丁目"]
[318,null,null,"野田屋町一丁目"]
[319,null,null,"野田屋町二丁目"]
[320,null,null,"野殿西町"]
[321,null,null,"野殿東町"]
[322,null,null,"延友"]
[323,null,null,"【は】"]
[324,null,null,"芳賀"]
[325,null,null,"畑鮎"]
[326,null,null,"花尻"]
[327,null,null,"花尻あかね町"]
[328,null,null,"花尻ききょう町"]
[329,null,null,"花尻みどり町"]
[330,null,null,"原"]
[331,null,null,"蕃山町"]
[332,null,null,"半田町"]
[333,null,null,"番町一丁目"]
[334,null,null,"番町二丁目"]
[335,null,null,"【ひ】"]
[336,null,null,"東島田町一丁目"]
[337,null,null,"東島田町二丁目"]
[338,null,null,"東中央町"]
[339,null,null,"東野山町"]
[340,null,null,"東花尻"]
[341,null,null,"東古松"]
[342,null,null,"東古松一丁目"]
[343,null,null,"東古松二丁目"]
[344,null,null,"東古松三丁目"]
[345,null,null,"東古松四丁目"]
[346,null,null,"東古松五丁目"]
[347,null,null,"東古松南町"]
[348,null,null,"東山内"]
[349,null,null,"日近"]
[350,null,null,"日吉町"]
[351,null,null,"平田"]
[352,null,null,"平野"]
[353,null,null,"平山"]
[354,null,null,"広瀬町"]
[355,null,null,"【ふ】"]
[356,null,null,"福崎"]
[357,null,null,"福谷"]
[358,null,null,"二日市町"]
[359,null,null,"舟橋町"]
[360,null,null,"【へ】"]
[361,null,null,"兵団"]
[362,null,null,"平和町"]
[363,null,null,"【ほ】"]
[364,null,null,"法界院"]
[365,null,null,"奉還町一丁目"]
[366,null,null,"奉還町二丁目"]
[367,null,null,"奉還町三丁目"]
[368,null,null,"奉還町四丁目"]
[369,null,null,"本町"]
[370,null,null,"【ま】"]
[371,null,null,"間倉"]
[372,null,null,"松尾"]
[373,null,null,"真星"]
[374,null,null,"丸の内一丁目"]
[375,null,null,"丸の内二丁目"]
[376,null,null,"万成西町"]
[377,null,null,"万成東町"]
[378,null,null,"【み】"]
[379,null,null,"三門中町"]
[380,null,null,"三門西町"]
[381,null,null,"三門東町"]
[382,null,null,"御津石上"]
[383,null,null,"御津伊田"]
[384,null,null,"御津宇甘"]
[385,null,null,"御津宇垣"]
[386,null,null,"御津鹿瀬"]
[387,null,null,"御津勝尾"]
[388,null,null,"御津金川"]
[389,null,null,"御津川高"]
[390,null,null,"御津北野"]
[391,null,null,"御津草生"]
[392,null,null,"御津国ケ原"]
[393,null,null,"御津河内"]
[394,null,null,"御津虎倉"]
[395,null,null,"御津紙工"]
[396,null,null,"御津下田"]
[397,null,null,"御津新庄"]
[398,null,null,"御津高津"]
[399,null,null,"御津中泉"]
[400,null,null,"御津中畑"]
[401,null,null,"御津中牧"]
[402,null,null,"御津中山"]
[403,null,null,"御津野々口"]
[404,null,null,"御津平岡西"]
[405,null,null,"御津矢知"]
[406,null,null,"御津矢原"]
[407,null,null,"御津吉尾"]
[408,null,null,"御津芳谷"]
[409,null,null,"三手"]
[410,null,null,"三和"]
[411,null,null,"南方一丁目"]
[412,null,null,"南方二丁目"]
[413,null,null,"南方三丁目"]
[414,null,null,"南方四丁目"]
[415,null,null,"南方五丁目"]
[416,null,null,"南中央町"]
[417,null,null,"三野一丁目"]
[418,null,null,"三野二丁目"]
[419,null,null,"三野三丁目"]
[420,null,null,"三野本町"]
[421,null,null,"【む】"]
[422,null,null,"牟佐"]
[423,null,null,"【も】"]
[424,null,null,"門前"]
[425,null,null,"【や】"]
[426,null,null,"矢坂西町"]
[427,null,null,"矢坂東町"]
[428,null,null,"矢坂本町"]
[429,null,null,"柳町一丁目"]
[430,null,null,"柳町二丁目"]
[431,null,null,"山科町"]
[432,null,null,"大和町一丁目"]
[433,null,null,"大和町二丁目"]
[434,null,null,"山上"]
[435,null,null,"【ゆ】"]
[436,null,null,"弓之町"]
[437,null,null,"【よ】"]
[438,null,null,"横井上"]
[439,null,null,"横尾"]
[440,null,null,"吉"]
[441,null,null,"吉宗"]
[442,null,null,"【り】"]
[443,null,null,"理大町"]
[444,null,null,"【わ】"]
[445,null,null,"和井元"]
[446]
[447]
[448]
[449]
[450]
[451]
[452]
[453]
[454]
[455]
[456]
[457]
[458]
[459]
[460]
[461]
[462]
[463]
[464]
[465]
[466]
[467]
[468]
[469]
[470]
[471]
[472]
[473]
[474]
[475]
[476]
[477]
[478]
[479]
[480]
[481]
[482]
[483]
[484]
[485]
[486]
[487]
[488]
[489]
[490]
[491]
[492]
[493]
[494]
[495]
[496]
[497]
[498]
[499]
[500]
[501]
[502]
[503]
[504]
[505]
[506]
[507]
[508]
[509]
[510]
[511]
[512]
[513]
[514]
[515]
[516]
[517]
[518]
[519]
[520]
[521]
[522]
[523]
[524]
[525]
[526]
[527]
[528]
[529]
[530]
[531]
[532]
[533]
[534]
[535]
[536]
[537]
[538]
[539]
[540]
[541]
[542]
[543]
[544]
[545]
[546]
[547]
[548]
[549]
[550]
[551]
[552]
[553]
[554]
[555]
[556]
[557]
[558]
[559]
[560]
[561]
[562]
[563]
[564]
[565]
[566]
[567]
[568]
[569]
[570]
[571]
[572]
[573]
[574]
[575]
[576]
[577]
[578]
[579]
[580]
[581]
[582]
[583]
[584]
[585]
[586]
[587]
[588]
[589]
[590]
[591]
[592]
[593]
[594]
[595]
[596]
[597]
[598]
[599]
[600]
[601]
[602]
[603]
[604]
[605]
[606]
[607]
[608]
[609]
[610]
[611]
[612]
[613]
[614]
[615]
[616]
[617]
[618]
[619]
[620]
[621]
[622]
[623]
[624]
[625]
[626]
[627]
[628]
[629]
[630]
[631]
[632]
[633]
[634]
[635]
[636]
[637]
[638]
[639]
[640]
[641]
[642]
[643]
[644]
[645]
[646]
[647]
[648]
[649]
[650]
[651]
[652]
[653]
[654]
[655]
[656]
[657]
[658]
[659]
[660]
[661]
[662]
[663]
[664]
[665]
[666]
[667]
[668]
[669]
[670]
[671]
[672]
[673]
[674]
[675]
[676]
[677]
[678]
[679]
[680]
[681]
[682]
[683]
[684]
[685]
[686]
[687]
[688]
[689]
[690]
[691]
[692]
[693]
[694]
[695]
[696]
[697]
[698]
[699]
[700]
[701]
[702]
[703]
[704]
[705]
[706]
[707]
[708]
[709]
[710]
[711]
[712]
[713]
[714]
[715]
[716]
[717]
[718]
[719]
[720]
[721]
[722]
[723]
[724]
[725]
[726]
[727]
[728]
[729]
[730]
[731]
[732]
[733]
[734]
[735]
[736]
[737]
[738]
[739]
[740]
[741]
[742]
[743]
[744]
[745]
[746]
[747]
[748]
[749]
[750]
[751]
[752]
[753]
[754]
[755]
[756]
[757]
[758]
[759]
[760]
[761]
[762]
[763]
[764]
[765]
[766]
[767]
[768]
[769]
[770]
[771]
[772]
[773]
[774]
[775]
[776]
[777]
[778]
[779]
[780]
[781]
[782]
[783]
[784]
[785]
[786]
[787]
[788]
[789]
[790]
[791]
[792]
[793]
[794]
[795]
[796]
[797]
[798]
[799]
[800]
[801]
[802]
[803]
[804]
[805]
[806]
[807]
[808]
[809]
[810]
[811]
[812]
[813]
[814]
[815]
[816]
[817]
[818]
[819]
[820]
[821]

{"sheet":"【編集不可】補助要件マスタ","index":18,"n_rows":155,"n_cols":6,"rows_kept":155,"cut":false,"hidden":false,"merged":[[2,3,6,3],[22,2,29,2],[34,2,42,2],[47,2,55,2],[115,5,121,5],[107,4,110,4]]}
["主たる生活の本拠に設置"]
["【はい】","【いいえ】現に居住している","【いいえ】これから居住する"]
["【浄化槽を設置する建物の汚水処理】","【浄化槽を設置する建物の汚水処理】","【浄化槽を設置する建物の汚水処理】","選択肢"]
["無","単独","単独"]
["単独","汲取り","汲取り"]
["汲取り","合併"]
["合併"]
[]
["選択肢条件","添付書類"]
["【はい】無"]
["【はい】単独","■単独撤去前写真（撤去済の場合は撤去済写真）　■11条検査結果書等"]
["【はい】汲取り","■便槽撤去前写真（撤去済の場合を除く。）または汲取伝票（撤去済の場合）"]
["【はい】合併","■り災証明書"]
["【いいえ】現に居住している単独","■単独撤去前写真（撤去済の場合は撤去済写真）　■11条検査結果書等　■使用実績が確認できる公共料金の請求書等　■おおむね30日以上居住することを誓約する書面"]
["【いいえ】現に居住している汲取り","■便槽撤去前写真（撤去済の場合を除く。）または汲取伝票（撤去済の場合）　■使用実績が確認できる公共料金の請求書等　■おおむね30日以上居住することを誓約する書面"]
["【いいえ】現に居住している合併","■り災証明書"]
["【いいえ】これから居住する単独","■単独撤去前写真（撤去済の場合は撤去済写真）　■11条検査結果書等　■売買契約書等　■おおむね30日以上居住することを誓約する書面"]
["【いいえ】これから居住する汲取り","■便槽撤去前写真（撤去済の場合を除く。）または汲取伝票（撤去済の場合）　■売買契約書等　■おおむね30日以上居住することを誓約する書面"]
[]
["浄化槽を設置する建物の汚水処理無"]
["住民票の事前異動"]
["なし","あり"]
["【申請者の現住所】","【申請者の異動前住所】","選択肢"]
["集合住宅","集合住宅"]
["市外","市外"]
["汲取便槽使用家屋","汲取便槽使用家屋"]
["単独処理浄化槽家屋","単独処理浄化槽家屋"]
["下水道使用家屋","下水道使用家屋"]
["戸建て賃貸住宅","戸建て賃貸住宅"]
["分家独立","分家独立"]
[null,null,null,null,null,{"$f":"IFERROR(VLOOKUP(【編集不可】補助要件マスタ!C21,【編集不可】補助要件マスタ!A31:B36,2,FALSE),\"\")","v":""}]
["浄化槽を設置する建物の汚水処理単独"]
["住民票の事前異動"]
["なし","あり"]
["【申請者の現住所】","【申請者の異動前住所】","選択肢"]
["集合住宅","集合住宅"]
["市外","市外"]
["汲取便槽使用家屋","汲取便槽使用家屋"]
["単独処理浄化槽家屋","単独処理浄化槽家屋"]
["下水道使用家屋","下水道使用家屋"]
["戸建て賃貸住宅","戸建て賃貸住宅"]
["分家独立","分家独立"]
["合併処理浄化槽の戸建て住宅（賃貸を除く）","合併処理浄化槽の戸建て住宅（賃貸を除く）"]
[]
["浄化槽を設置する建物の汚水処理汲取り"]
["住民票の事前異動"]
["なし","あり"]
["【申請者の現住所】","【申請者の異動前住所】","選択肢"]
["集合住宅","集合住宅"]
["市外","市外"]
["汲取便槽使用家屋","汲取便槽使用家屋"]
["単独処理浄化槽家屋","単独処理浄化槽家屋"]
["下水道使用家屋","下水道使用家屋"]
["戸建て賃貸住宅","戸建て賃貸住宅"]
["分家独立","分家独立"]
["合併処理浄化槽の戸建て住宅（賃貸を除く）","合併処理浄化槽の戸建て住宅（賃貸を除く）"]
[]
["選択肢条件","添付書類"]
["無なし集合住宅","■賃貸借契約書の写し等（滞納無証明書または住民票等を添付し、集合住宅であることが確認できる場合は不要）"]
["無なし市外","■住民票（市外のもの）"]
["無なし汲取便槽使用家屋","■汲取伝票（現住所のもの、埋め替えの場合は便槽撤去前写真で代用可）"]
["無なし単独処理浄化槽家屋","■11条検査結果書等（現住所のもの）"]
["無なし下水道使用家屋","■水道検針票「ご使用水量・料金のお知らせ」の写し　or　水道局発行の「岡山市水道料金等収納状況のお知らせ」（現住所のもの）"]
["無なし戸建て賃貸住宅","■賃貸借契約書の写し等"]
["無なし分家独立","■同居する世帯全員の住民票（続柄が記載されたもの）　■誰が分家するかを記載した理由書"]
["無あり集合住宅","■住民票（異動前の住所が記載されたもの）　■事前異動した理由を記した理由書　■賃貸借契約書の写し等（滞納無証明書または住民票を添付し、集合住宅であることが確認できる場合は不要）"]
["無あり市外","■住民票（異動前の市外の住所が記載されたもの）　■事前異動した理由を記した理由書"]
["無あり汲取便槽使用家屋","■住民票（異動前の住所が記載されたもの）　■事前異動した理由を記した理由書　■汲取伝票（異動前の住所が記載されたもの）"]
["無あり単独処理浄化槽家屋","■住民票（異動前の住所が記載されたもの）　■事前異動した理由を記した理由書　■11条検査結果書等（異動前の住所が記載されたもの）"]
["無あり下水道使用家屋","■住民票（異動前の住所が記載されたもの）　■事前異動した理由を記した理由書　■水道検針票「ご使用水量・料金のお知らせ」の写し　or　水道局発行の「岡山市水道料金等収納状況のお知らせ」（異動前の住所が記載されたもの）"]
["無あり戸建て賃貸住宅","■住民票（異動前の住所が記載されたもの）　■事前異動した理由を記した理由書　■賃貸借契約書の写し等"]
["無あり分家独立","■同居する世帯全員の住民票（続柄が記載されたもの、申請者については異動前の住所が記載されたもの）　■事前異動した理由を記した理由書　■誰が分家するかを記載した理由書"]
["単独なし集合住宅"]
["単独なし市外","■住民票（市外のもの）"]
["単独なし汲取便槽使用家屋"]
["単独なし単独処理浄化槽家屋"]
["単独なし下水道使用家屋"]
["単独なし戸建て賃貸住宅"]
["単独なし分家独立"]
["単独なし合併処理浄化槽の戸建て住宅（賃貸を除く）"]
["単独あり集合住宅","■住民票（異動前の住所が記載されたもの）　■事前異動した理由を記した理由書"]
["単独あり市外","■住民票（異動前の市外の住所が記載されたもの）　■事前異動した理由を記した理由書"]
["単独あり汲取便槽使用家屋","■住民票（異動前の住所が記載されたもの）　■事前異動した理由を記した理由書"]
["単独あり単独処理浄化槽家屋","■住民票（異動前の住所が記載されたもの）　■事前異動した理由を記した理由書"]
["単独あり下水道使用家屋","■住民票（異動前の住所が記載されたもの）　■事前異動した理由を記した理由書"]
["単独あり戸建て賃貸住宅","■住民票（異動前の住所が記載されたもの）　■事前異動した理由を記した理由書"]
["単独あり分家独立","■住民票（異動前の住所が記載されたもの）　■事前異動した理由を記した理由書"]
["単独あり合併処理浄化槽の戸建て住宅（賃貸を除く）","■住民票（異動前の住所が記載されたもの）　■事前異動した理由を記した理由書"]
["汲取りなし集合住宅"]
["汲取りなし市外","■住民票（市外のもの）"]
["汲取りなし汲取便槽使用家屋"]
["汲取りなし単独処理浄化槽家屋"]
["汲取りなし下水道使用家屋"]
["汲取りなし戸建て賃貸住宅"]
["汲取りなし親元からの分家独立"]
["汲取りなし合併処理浄化槽の戸建て住宅（賃貸を除く）"]
["汲取りあり集合住宅","■住民票（異動前の住所が記載されたもの）　■事前異動した理由を記した理由書"]
["汲取りあり市外","■住民票（異動前の市外の住所が記載されたもの）　■事前異動した理由を記した理由書"]
["汲取りあり汲取便槽使用家屋","■住民票（異動前の住所が記載されたもの）　■事前異動した理由を記した理由書"]
["汲取りあり単独処理浄化槽家屋","■住民票（異動前の住所が記載されたもの）　■事前異動した理由を記した理由書"]
["汲取りあり下水道使用家屋","■住民票（異動前の住所が記載されたもの）　■事前異動した理由を記した理由書"]
["汲取りあり戸建て賃貸住宅","■住民票（異動前の住所が記載されたもの）　■事前異動した理由を記した理由書"]
["汲取りあり親元からの分家独立","■住民票（異動前の住所が記載されたもの）　■事前異動した理由を記した理由書"]
["汲取りあり合併処理浄化槽の戸建て住宅（賃貸を除く）","■住民票（異動前の住所が記載されたもの）　■事前異動した理由を記した理由書"]
[]
["補助金申請"]
["無","単独","汲取り","合併"]
["設置分のみ","設置分のみ","設置分のみ","設置分のみ","選択肢"]
[null,"設置分と宅内配管補助【単独転換】","設置分と宅内配管補助【汲取り転換】"]
[null,null,"設置分と宅内配管補助と便槽撤去補助"]
[null,null,"設置分と便槽撤去補助"]
[]
[]
["補助金申請"]
["設置分のみ","設置分と宅内配管補助【単独転換】","設置分と宅内配管補助【汲取り転換】","設置分と宅内配管補助と便槽撤去補助","設置分と便槽撤去補助"]
["【確認】新築","【確認】増築","【確認】増築","【確認】増築","【確認】増築","選択肢"]
["【確認】増築","【届出】埋め替えのみ","【届出】埋め替えのみ","【届出】埋め替えのみ","【確認】建替"]
["【確認】建替","【届出】増築","【届出】増築","【届出】増築","【届出】埋め替えのみ"]
["【届出】埋め替えのみ",null,null,null,"【届出】増築"]
["【届出】新築",null,null,null,"【届出】建替"]
["【届出】増築"]
["【届出】建替"]
[]
["選択肢条件","添付書類"]
["設置分のみ【確認】新築"]
["設置分のみ【確認】増築"]
["設置分のみ【確認】建替","■要約書または売買契約書等建替前の建物の存在が確認できる書類（汲取伝票または11条検査結果書の名義等で確認できる場合を除く。）"]
["設置分のみ【届出】埋め替えのみ"]
["設置分のみ【届出】新築"]
["設置分のみ【届出】増築"]
["設置分のみ【届出】建替","■要約書または売買契約書等建替前の建物の存在が確認できる書類（汲取伝票または11条検査結果書の名義等で確認できる場合を除く。）"]
["設置分と宅内配管補助【単独転換】【確認】増築","■増改築前後の間取り図面　■世帯人員が増加する旨を記載した理由書　■増加する世帯人員の住民票"]
["設置分と宅内配管補助【単独転換】【届出】埋め替えのみ"]
["設置分と宅内配管補助【単独転換】【届出】増築","■増改築前後の間取り図面　■世帯人員が増加する旨を記載した理由書　■増加する世帯人員の住民票"]
["設置分と宅内配管補助【汲取り転換】【確認】増築","■便槽が完全に撤去できない場合は理由書・図面　■増改築前後の間取り図面　■世帯人員が増加する旨を記載した理由書　■増加する世帯人員の住民票"]
["設置分と宅内配管補助【汲取り転換】【届出】埋め替えのみ","■便槽が完全に撤去できない場合は理由書・図面　"]
["設置分と宅内配管補助【汲取り転換】【届出】増築","■便槽が完全に撤去できない場合は理由書・図面　■増改築前後の間取り図面　■世帯人員が増加する旨を記載した理由書　■増加する世帯人員の住民票"]
["設置分と宅内配管補助と便槽撤去補助【確認】増築","■増改築前後の間取り図面　■世帯人員が増加する旨を記載した理由書　■増加する世帯人員の住民票"]
["設置分と宅内配管補助と便槽撤去補助【届出】埋め替えのみ"]
["設置分と宅内配管補助と便槽撤去補助【届出】増築","■増改築前後の間取り図面　■世帯人員が増加する旨を記載した理由書　■増加する世帯人員の住民票"]
["設置分と便槽撤去補助【確認】増築"]
["設置分と便槽撤去補助【確認】建替","■便槽撤去前写真　■要約書または売買契約書等建替前の建物の存在が確認できる書類（汲取伝票の名義等で確認できる場合を除く。）"]
["設置分と便槽撤去補助【届出】埋め替えのみ"]
["設置分と便槽撤去補助【届出】増築"]
["設置分と便槽撤去補助【届出】建替","■便槽撤去前写真　■要約書または売買契約書等建替前の建物の存在が確認できる書類（汲取伝票の名義等で確認できる場合を除く。）"]
[]
["浄化槽を設置する建物の所有者"]
["自己所有","借家等（賃貸借契約あり）","借家等（賃貸借契約なし）","建売・中古住宅を購入（所有権移転前）","建売・中古住宅を購入（所有権移転後）"]
[]
["選択肢条件","添付書類"]
["自己所有"]
["借家等（賃貸借契約あり）","■賃貸借契約書　■所有者が浄化槽を埋設すること及び居住することを承諾する書面　■７年間居住誓約書"]
["借家等（賃貸借契約なし）","■所有者が浄化槽を埋設すること及び居住することを承諾する書面　■７年間居住誓約書"]
["建売・中古住宅を購入（所有権移転前）","■売買契約書または要約書　■所有者が浄化槽を埋設すること及び居住することを承諾する書面"]
["建売・中古住宅を購入（所有権移転後）","■売買契約書または要約書"]